{"text_format":"3","workbook":"xlsx","n_sheets":3,"sheets":["Supply Disruption Form","Contact Information","Contracts (April 2022)"],"not_rendered":{"images":1,"macros":1,"defined_names":80,"comments":1},"read":"whole","date_system":"1900"}

{"sheet":"Supply Disruption Form","index":0,"n_rows":393,"n_cols":28,"rows_kept":393,"merged":[[1,3,1,7],[4,3,4,7],[10,16,10,23],[11,25,11,27]]}
["SUPPLY DISRUPTION REPORTING FORM"]
["CONFIDENTIAL - NOT FOR DISTRIBUTION"]
["Supplier name:"]
["Name of sender:"]
["Email address of sender:"]
["Phone number of sender:"]
["Service/Category:"]
[]
["  Legend:"]
[]
[{"$nulls":16},"Note to suppliers:\n-In the event an awarded product is to become permanently unavailable, Supplier will provide HealthPRO with sixty (60) days’ advance written notice.\n-Price of the substitute product needs to be the same or lower (otherwise Supplier will pay the differential)"]
[{"$nulls":16},"Details of Available Substitutes Proposed by the Supplier",{"$nulls":8},"Clinical Advisor"]
["Nature of disruption \nBackorder\nDiscontinuation with Substitute\nDiscontinuation with No Substitute","Cause of Disruption\n(Please include detailed reason)","National/ Provincial?\n(If provincial, please indicate the affected provinces)","Contract Number\ne.g. (01234)","Contract Name","Supplier Product Code","Supplier Product Description","Brand","Is this a Current or Future Disruption?","Disruption Start Date \n(MM/DD/YY)","Estimated Date of Recovery\n(MM/DD/YY)","Is Stock Available for Purchase? (Yes/No)\n(If Yes, When will stock become unavailable?)","If product is on allocation, please provide % of allocation","Please upload any communication related to this disruption","Notes",null,"Is this item currently on contract? (Yes/No)","Supplier Code","Product Description      (GS1 - Compliant Format Preferred)","Brand","Size(V)","Latex \n(Yes/No)\n(if applicable)","Clinical differences between original and substitute product","Please provide substitute product information (Weblinks, Brochures, etc.)",null,"Is the product critical in nature?","Is the substitute Functionally Equivalent?","Remarks"]
[{"$nulls":4},{"$f":"IFERROR(VLOOKUP(D14,'Contracts (April 2022)'!C1:L522,3,FALSE),\"\")","v":""}]
[{"$nulls":4},{"$f":"IFERROR(VLOOKUP(D15,'Contracts (April 2022)'!C2:L523,3,FALSE),\"\")","v":""}]
[{"$nulls":4},{"$f":"IFERROR(VLOOKUP(D16,'Contracts (April 2022)'!C3:L524,3,FALSE),\"\")","v":""}]
[{"$nulls":4},{"$f":"IFERROR(VLOOKUP(D17,'Contracts (April 2022)'!C4:L525,3,FALSE),\"\")","v":""}]
[{"$nulls":4},{"$f":"IFERROR(VLOOKUP(D18,'Contracts (April 2022)'!C5:L526,3,FALSE),\"\")","v":""}]
[{"$nulls":4},{"$f":"IFERROR(VLOOKUP(D19,'Contracts (April 2022)'!C6:L527,3,FALSE),\"\")","v":""}]
[{"$nulls":4},{"$f":"IFERROR(VLOOKUP(D20,'Contracts (April 2022)'!C7:L528,3,FALSE),\"\")","v":""}]
[{"$nulls":4},{"$f":"IFERROR(VLOOKUP(D21,'Contracts (April 2022)'!C8:L529,3,FALSE),\"\")","v":""}]
[{"$nulls":4},{"$f":"IFERROR(VLOOKUP(D22,'Contracts (April 2022)'!C9:L530,3,FALSE),\"\")","v":""}]
[{"$nulls":4},{"$f":"IFERROR(VLOOKUP(D23,'Contracts (April 2022)'!C10:L531,3,FALSE),\"\")","v":""}]
[{"$nulls":4},{"$f":"IFERROR(VLOOKUP(D24,'Contracts (April 2022)'!C11:L532,3,FALSE),\"\")","v":""}]
[{"$nulls":4},{"$f":"IFERROR(VLOOKUP(D25,'Contracts (April 2022)'!C12:L533,3,FALSE),\"\")","v":""}]
[{"$nulls":4},{"$f":"IFERROR(VLOOKUP(D26,'Contracts (April 2022)'!C13:L534,3,FALSE),\"\")","v":""}]
[{"$nulls":4},{"$f":"IFERROR(VLOOKUP(D27,'Contracts (April 2022)'!C14:L535,3,FALSE),\"\")","v":""}]
[{"$nulls":4},{"$f":"IFERROR(VLOOKUP(D28,'Contracts (April 2022)'!C15:L536,3,FALSE),\"\")","v":""}]
[{"$nulls":4},{"$f":"IFERROR(VLOOKUP(D29,'Contracts (April 2022)'!C16:L537,3,FALSE),\"\")","v":""}]
[{"$nulls":4},{"$f":"IFERROR(VLOOKUP(D30,'Contracts (April 2022)'!C17:L538,3,FALSE),\"\")","v":""}]
[{"$nulls":4},{"$f":"IFERROR(VLOOKUP(D31,'Contracts (April 2022)'!C18:L539,3,FALSE),\"\")","v":""}]
[{"$nulls":4},{"$f":"IFERROR(VLOOKUP(D32,'Contracts (April 2022)'!C19:L540,3,FALSE),\"\")","v":""}]
[{"$nulls":4},{"$f":"IFERROR(VLOOKUP(D33,'Contracts (April 2022)'!C20:L541,3,FALSE),\"\")","v":""}]
[{"$nulls":4},{"$f":"IFERROR(VLOOKUP(D34,'Contracts (April 2022)'!C21:L542,3,FALSE),\"\")","v":""}]
[{"$nulls":4},{"$f":"IFERROR(VLOOKUP(D35,'Contracts (April 2022)'!C22:L543,3,FALSE),\"\")","v":""}]
[{"$nulls":4},{"$f":"IFERROR(VLOOKUP(D36,'Contracts (April 2022)'!C23:L544,3,FALSE),\"\")","v":""}]
[{"$nulls":4},{"$f":"IFERROR(VLOOKUP(D37,'Contracts (April 2022)'!C24:L545,3,FALSE),\"\")","v":""}]
[{"$nulls":4},{"$f":"IFERROR(VLOOKUP(D38,'Contracts (April 2022)'!C25:L546,3,FALSE),\"\")","v":""}]
[{"$nulls":4},{"$f":"IFERROR(VLOOKUP(D39,'Contracts (April 2022)'!C26:L547,3,FALSE),\"\")","v":""}]
[{"$nulls":4},{"$f":"IFERROR(VLOOKUP(D40,'Contracts (April 2022)'!C27:L548,3,FALSE),\"\")","v":""}]
[{"$nulls":4},{"$f":"IFERROR(VLOOKUP(D41,'Contracts (April 2022)'!C28:L549,3,FALSE),\"\")","v":""}]
[{"$nulls":4},{"$f":"IFERROR(VLOOKUP(D42,'Contracts (April 2022)'!C29:L550,3,FALSE),\"\")","v":""}]
[{"$nulls":4},{"$f":"IFERROR(VLOOKUP(D43,'Contracts (April 2022)'!C30:L551,3,FALSE),\"\")","v":""}]
[{"$nulls":4},{"$f":"IFERROR(VLOOKUP(D44,'Contracts (April 2022)'!C31:L552,3,FALSE),\"\")","v":""}]
[{"$nulls":4},{"$f":"IFERROR(VLOOKUP(D45,'Contracts (April 2022)'!C32:L553,3,FALSE),\"\")","v":""}]
[{"$nulls":4},{"$f":"IFERROR(VLOOKUP(D46,'Contracts (April 2022)'!C33:L554,3,FALSE),\"\")","v":""}]
[{"$nulls":4},{"$f":"IFERROR(VLOOKUP(D47,'Contracts (April 2022)'!C34:L555,3,FALSE),\"\")","v":""}]
[{"$nulls":4},{"$f":"IFERROR(VLOOKUP(D48,'Contracts (April 2022)'!C35:L556,3,FALSE),\"\")","v":""}]
[{"$nulls":4},{"$f":"IFERROR(VLOOKUP(D49,'Contracts (April 2022)'!C36:L557,3,FALSE),\"\")","v":""}]
[{"$nulls":4},{"$f":"IFERROR(VLOOKUP(D50,'Contracts (April 2022)'!C37:L558,3,FALSE),\"\")","v":""}]
[{"$nulls":4},{"$f":"IFERROR(VLOOKUP(D51,'Contracts (April 2022)'!C38:L559,3,FALSE),\"\")","v":""}]
[{"$nulls":4},{"$f":"IFERROR(VLOOKUP(D52,'Contracts (April 2022)'!C39:L560,3,FALSE),\"\")","v":""}]
[{"$nulls":4},{"$f":"IFERROR(VLOOKUP(D53,'Contracts (April 2022)'!C40:L561,3,FALSE),\"\")","v":""}]
[{"$nulls":4},{"$f":"IFERROR(VLOOKUP(D54,'Contracts (April 2022)'!C41:L562,3,FALSE),\"\")","v":""}]
[{"$nulls":4},{"$f":"IFERROR(VLOOKUP(D55,'Contracts (April 2022)'!C42:L563,3,FALSE),\"\")","v":""}]
[{"$nulls":4},{"$f":"IFERROR(VLOOKUP(D56,'Contracts (April 2022)'!C43:L564,3,FALSE),\"\")","v":""}]
[{"$nulls":4},{"$f":"IFERROR(VLOOKUP(D57,'Contracts (April 2022)'!C44:L565,3,FALSE),\"\")","v":""}]
[{"$nulls":4},{"$f":"IFERROR(VLOOKUP(D58,'Contracts (April 2022)'!C45:L566,3,FALSE),\"\")","v":""}]
[{"$nulls":4},{"$f":"IFERROR(VLOOKUP(D59,'Contracts (April 2022)'!C46:L567,3,FALSE),\"\")","v":""}]
[{"$nulls":4},{"$f":"IFERROR(VLOOKUP(D60,'Contracts (April 2022)'!C47:L568,3,FALSE),\"\")","v":""}]
[{"$nulls":4},{"$f":"IFERROR(VLOOKUP(D61,'Contracts (April 2022)'!C48:L569,3,FALSE),\"\")","v":""}]
[{"$nulls":4},{"$f":"IFERROR(VLOOKUP(D62,'Contracts (April 2022)'!C49:L570,3,FALSE),\"\")","v":""}]
[{"$nulls":4},{"$f":"IFERROR(VLOOKUP(D63,'Contracts (April 2022)'!C50:L571,3,FALSE),\"\")","v":""}]
[{"$nulls":4},{"$f":"IFERROR(VLOOKUP(D64,'Contracts (April 2022)'!C51:L572,3,FALSE),\"\")","v":""}]
[{"$nulls":4},{"$f":"IFERROR(VLOOKUP(D65,'Contracts (April 2022)'!C52:L573,3,FALSE),\"\")","v":""}]
[{"$nulls":4},{"$f":"IFERROR(VLOOKUP(D66,'Contracts (April 2022)'!C53:L574,3,FALSE),\"\")","v":""}]
[{"$nulls":4},{"$f":"IFERROR(VLOOKUP(D67,'Contracts (April 2022)'!C54:L575,3,FALSE),\"\")","v":""}]
[{"$nulls":4},{"$f":"IFERROR(VLOOKUP(D68,'Contracts (April 2022)'!C55:L576,3,FALSE),\"\")","v":""}]
[{"$nulls":4},{"$f":"IFERROR(VLOOKUP(D69,'Contracts (April 2022)'!C56:L577,3,FALSE),\"\")","v":""}]
[{"$nulls":4},{"$f":"IFERROR(VLOOKUP(D70,'Contracts (April 2022)'!C57:L578,3,FALSE),\"\")","v":""}]
[{"$nulls":4},{"$f":"IFERROR(VLOOKUP(D71,'Contracts (April 2022)'!C58:L579,3,FALSE),\"\")","v":""}]
[{"$nulls":4},{"$f":"IFERROR(VLOOKUP(D72,'Contracts (April 2022)'!C59:L580,3,FALSE),\"\")","v":""}]
[{"$nulls":4},{"$f":"IFERROR(VLOOKUP(D73,'Contracts (April 2022)'!C60:L581,3,FALSE),\"\")","v":""}]
[{"$nulls":4},{"$f":"IFERROR(VLOOKUP(D74,'Contracts (April 2022)'!C61:L582,3,FALSE),\"\")","v":""}]
[{"$nulls":4},{"$f":"IFERROR(VLOOKUP(D75,'Contracts (April 2022)'!C62:L583,3,FALSE),\"\")","v":""}]
[{"$nulls":4},{"$f":"IFERROR(VLOOKUP(D76,'Contracts (April 2022)'!C63:L584,3,FALSE),\"\")","v":""}]
[{"$nulls":4},{"$f":"IFERROR(VLOOKUP(D77,'Contracts (April 2022)'!C64:L585,3,FALSE),\"\")","v":""}]
[{"$nulls":4},{"$f":"IFERROR(VLOOKUP(D78,'Contracts (April 2022)'!C65:L586,3,FALSE),\"\")","v":""}]
[{"$nulls":4},{"$f":"IFERROR(VLOOKUP(D79,'Contracts (April 2022)'!C66:L587,3,FALSE),\"\")","v":""}]
[{"$nulls":4},{"$f":"IFERROR(VLOOKUP(D80,'Contracts (April 2022)'!C67:L588,3,FALSE),\"\")","v":""}]
[{"$nulls":4},{"$f":"IFERROR(VLOOKUP(D81,'Contracts (April 2022)'!C68:L589,3,FALSE),\"\")","v":""}]
[{"$nulls":4},{"$f":"IFERROR(VLOOKUP(D82,'Contracts (April 2022)'!C69:L590,3,FALSE),\"\")","v":""}]
[{"$nulls":4},{"$f":"IFERROR(VLOOKUP(D83,'Contracts (April 2022)'!C70:L591,3,FALSE),\"\")","v":""}]
[{"$nulls":4},{"$f":"IFERROR(VLOOKUP(D84,'Contracts (April 2022)'!C71:L592,3,FALSE),\"\")","v":""}]
[{"$nulls":4},{"$f":"IFERROR(VLOOKUP(D85,'Contracts (April 2022)'!C72:L593,3,FALSE),\"\")","v":""}]
[{"$nulls":4},{"$f":"IFERROR(VLOOKUP(D86,'Contracts (April 2022)'!C73:L594,3,FALSE),\"\")","v":""}]
[{"$nulls":4},{"$f":"IFERROR(VLOOKUP(D87,'Contracts (April 2022)'!C74:L595,3,FALSE),\"\")","v":""}]
[{"$nulls":4},{"$f":"IFERROR(VLOOKUP(D88,'Contracts (April 2022)'!C75:L596,3,FALSE),\"\")","v":""}]
[{"$nulls":4},{"$f":"IFERROR(VLOOKUP(D89,'Contracts (April 2022)'!C76:L597,3,FALSE),\"\")","v":""}]
[{"$nulls":4},{"$f":"IFERROR(VLOOKUP(D90,'Contracts (April 2022)'!C77:L598,3,FALSE),\"\")","v":""}]
[{"$nulls":4},{"$f":"IFERROR(VLOOKUP(D91,'Contracts (April 2022)'!C78:L599,3,FALSE),\"\")","v":""}]
[{"$nulls":4},{"$f":"IFERROR(VLOOKUP(D92,'Contracts (April 2022)'!C79:L600,3,FALSE),\"\")","v":""}]
[{"$nulls":4},{"$f":"IFERROR(VLOOKUP(D93,'Contracts (April 2022)'!C80:L601,3,FALSE),\"\")","v":""}]
[{"$nulls":4},{"$f":"IFERROR(VLOOKUP(D94,'Contracts (April 2022)'!C81:L602,3,FALSE),\"\")","v":""}]
[{"$nulls":4},{"$f":"IFERROR(VLOOKUP(D95,'Contracts (April 2022)'!C82:L603,3,FALSE),\"\")","v":""}]
[{"$nulls":4},{"$f":"IFERROR(VLOOKUP(D96,'Contracts (April 2022)'!C83:L604,3,FALSE),\"\")","v":""}]
[{"$nulls":4},{"$f":"IFERROR(VLOOKUP(D97,'Contracts (April 2022)'!C84:L605,3,FALSE),\"\")","v":""}]
[{"$nulls":4},{"$f":"IFERROR(VLOOKUP(D98,'Contracts (April 2022)'!C85:L606,3,FALSE),\"\")","v":""}]
[{"$nulls":4},{"$f":"IFERROR(VLOOKUP(D99,'Contracts (April 2022)'!C86:L607,3,FALSE),\"\")","v":""}]
[{"$nulls":4},{"$f":"IFERROR(VLOOKUP(D100,'Contracts (April 2022)'!C87:L608,3,FALSE),\"\")","v":""}]
[{"$nulls":4},{"$f":"IFERROR(VLOOKUP(D101,'Contracts (April 2022)'!C88:L609,3,FALSE),\"\")","v":""}]
[{"$nulls":4},{"$f":"IFERROR(VLOOKUP(D102,'Contracts (April 2022)'!C89:L610,3,FALSE),\"\")","v":""}]
[{"$nulls":4},{"$f":"IFERROR(VLOOKUP(D103,'Contracts (April 2022)'!C90:L611,3,FALSE),\"\")","v":""}]
[{"$nulls":4},{"$f":"IFERROR(VLOOKUP(D104,'Contracts (April 2022)'!C91:L612,3,FALSE),\"\")","v":""}]
[{"$nulls":4},{"$f":"IFERROR(VLOOKUP(D105,'Contracts (April 2022)'!C92:L613,3,FALSE),\"\")","v":""}]
[{"$nulls":4},{"$f":"IFERROR(VLOOKUP(D106,'Contracts (April 2022)'!C93:L614,3,FALSE),\"\")","v":""}]
[{"$nulls":4},{"$f":"IFERROR(VLOOKUP(D107,'Contracts (April 2022)'!C94:L615,3,FALSE),\"\")","v":""}]
[{"$nulls":4},{"$f":"IFERROR(VLOOKUP(D108,'Contracts (April 2022)'!C95:L616,3,FALSE),\"\")","v":""}]
[{"$nulls":4},{"$f":"IFERROR(VLOOKUP(D109,'Contracts (April 2022)'!C96:L617,3,FALSE),\"\")","v":""}]
[{"$nulls":4},{"$f":"IFERROR(VLOOKUP(D110,'Contracts (April 2022)'!C97:L618,3,FALSE),\"\")","v":""}]
[{"$nulls":4},{"$f":"IFERROR(VLOOKUP(D111,'Contracts (April 2022)'!C98:L619,3,FALSE),\"\")","v":""}]
[{"$nulls":4},{"$f":"IFERROR(VLOOKUP(D112,'Contracts (April 2022)'!C99:L620,3,FALSE),\"\")","v":""}]
[{"$nulls":4},{"$f":"IFERROR(VLOOKUP(D113,'Contracts (April 2022)'!C100:L621,3,FALSE),\"\")","v":""}]
[{"$nulls":4},{"$f":"IFERROR(VLOOKUP(D114,'Contracts (April 2022)'!C101:L622,3,FALSE),\"\")","v":""}]
[{"$nulls":4},{"$f":"IFERROR(VLOOKUP(D115,'Contracts (April 2022)'!C102:L623,3,FALSE),\"\")","v":""}]
[{"$nulls":4},{"$f":"IFERROR(VLOOKUP(D116,'Contracts (April 2022)'!C103:L624,3,FALSE),\"\")","v":""}]
[{"$nulls":4},{"$f":"IFERROR(VLOOKUP(D117,'Contracts (April 2022)'!C104:L625,3,FALSE),\"\")","v":""}]
[{"$nulls":4},{"$f":"IFERROR(VLOOKUP(D118,'Contracts (April 2022)'!C105:L626,3,FALSE),\"\")","v":""}]
[{"$nulls":4},{"$f":"IFERROR(VLOOKUP(D119,'Contracts (April 2022)'!C106:L627,3,FALSE),\"\")","v":""}]
[{"$nulls":4},{"$f":"IFERROR(VLOOKUP(D120,'Contracts (April 2022)'!C107:L628,3,FALSE),\"\")","v":""}]
[{"$nulls":4},{"$f":"IFERROR(VLOOKUP(D121,'Contracts (April 2022)'!C108:L629,3,FALSE),\"\")","v":""}]
[{"$nulls":4},{"$f":"IFERROR(VLOOKUP(D122,'Contracts (April 2022)'!C109:L630,3,FALSE),\"\")","v":""}]
[{"$nulls":4},{"$f":"IFERROR(VLOOKUP(D123,'Contracts (April 2022)'!C110:L631,3,FALSE),\"\")","v":""}]
[{"$nulls":4},{"$f":"IFERROR(VLOOKUP(D124,'Contracts (April 2022)'!C111:L632,3,FALSE),\"\")","v":""}]
[{"$nulls":4},{"$f":"IFERROR(VLOOKUP(D125,'Contracts (April 2022)'!C112:L633,3,FALSE),\"\")","v":""}]
[{"$nulls":4},{"$f":"IFERROR(VLOOKUP(D126,'Contracts (April 2022)'!C113:L634,3,FALSE),\"\")","v":""}]
[{"$nulls":4},{"$f":"IFERROR(VLOOKUP(D127,'Contracts (April 2022)'!C114:L635,3,FALSE),\"\")","v":""}]
[{"$nulls":4},{"$f":"IFERROR(VLOOKUP(D128,'Contracts (April 2022)'!C115:L636,3,FALSE),\"\")","v":""}]
[{"$nulls":4},{"$f":"IFERROR(VLOOKUP(D129,'Contracts (April 2022)'!C116:L637,3,FALSE),\"\")","v":""}]
[{"$nulls":4},{"$f":"IFERROR(VLOOKUP(D130,'Contracts (April 2022)'!C117:L638,3,FALSE),\"\")","v":""}]
[{"$nulls":4},{"$f":"IFERROR(VLOOKUP(D131,'Contracts (April 2022)'!C118:L639,3,FALSE),\"\")","v":""}]
[{"$nulls":4},{"$f":"IFERROR(VLOOKUP(D132,'Contracts (April 2022)'!C119:L640,3,FALSE),\"\")","v":""}]
[{"$nulls":4},{"$f":"IFERROR(VLOOKUP(D133,'Contracts (April 2022)'!C120:L641,3,FALSE),\"\")","v":""}]
[{"$nulls":4},{"$f":"IFERROR(VLOOKUP(D134,'Contracts (April 2022)'!C121:L642,3,FALSE),\"\")","v":""}]
[{"$nulls":4},{"$f":"IFERROR(VLOOKUP(D135,'Contracts (April 2022)'!C122:L643,3,FALSE),\"\")","v":""}]
[{"$nulls":4},{"$f":"IFERROR(VLOOKUP(D136,'Contracts (April 2022)'!C123:L644,3,FALSE),\"\")","v":""}]
[{"$nulls":4},{"$f":"IFERROR(VLOOKUP(D137,'Contracts (April 2022)'!C124:L645,3,FALSE),\"\")","v":""}]
[{"$nulls":4},{"$f":"IFERROR(VLOOKUP(D138,'Contracts (April 2022)'!C125:L646,3,FALSE),\"\")","v":""}]
[{"$nulls":4},{"$f":"IFERROR(VLOOKUP(D139,'Contracts (April 2022)'!C126:L647,3,FALSE),\"\")","v":""}]
[{"$nulls":4},{"$f":"IFERROR(VLOOKUP(D140,'Contracts (April 2022)'!C127:L648,3,FALSE),\"\")","v":""}]
[{"$nulls":4},{"$f":"IFERROR(VLOOKUP(D141,'Contracts (April 2022)'!C128:L649,3,FALSE),\"\")","v":""}]
[{"$nulls":4},{"$f":"IFERROR(VLOOKUP(D142,'Contracts (April 2022)'!C129:L650,3,FALSE),\"\")","v":""}]
[{"$nulls":4},{"$f":"IFERROR(VLOOKUP(D143,'Contracts (April 2022)'!C130:L651,3,FALSE),\"\")","v":""}]
[{"$nulls":4},{"$f":"IFERROR(VLOOKUP(D144,'Contracts (April 2022)'!C131:L652,3,FALSE),\"\")","v":""}]
[{"$nulls":4},{"$f":"IFERROR(VLOOKUP(D145,'Contracts (April 2022)'!C132:L653,3,FALSE),\"\")","v":""}]
[{"$nulls":4},{"$f":"IFERROR(VLOOKUP(D146,'Contracts (April 2022)'!C133:L654,3,FALSE),\"\")","v":""}]
[{"$nulls":4},{"$f":"IFERROR(VLOOKUP(D147,'Contracts (April 2022)'!C134:L655,3,FALSE),\"\")","v":""}]
[{"$nulls":4},{"$f":"IFERROR(VLOOKUP(D148,'Contracts (April 2022)'!C135:L656,3,FALSE),\"\")","v":""}]
[{"$nulls":4},{"$f":"IFERROR(VLOOKUP(D149,'Contracts (April 2022)'!C136:L657,3,FALSE),\"\")","v":""}]
[{"$nulls":4},{"$f":"IFERROR(VLOOKUP(D150,'Contracts (April 2022)'!C137:L658,3,FALSE),\"\")","v":""}]
[{"$nulls":4},{"$f":"IFERROR(VLOOKUP(D151,'Contracts (April 2022)'!C138:L659,3,FALSE),\"\")","v":""}]
[{"$nulls":4},{"$f":"IFERROR(VLOOKUP(D152,'Contracts (April 2022)'!C139:L660,3,FALSE),\"\")","v":""}]
[{"$nulls":4},{"$f":"IFERROR(VLOOKUP(D153,'Contracts (April 2022)'!C140:L661,3,FALSE),\"\")","v":""}]
[{"$nulls":4},{"$f":"IFERROR(VLOOKUP(D154,'Contracts (April 2022)'!C141:L662,3,FALSE),\"\")","v":""}]
[{"$nulls":4},{"$f":"IFERROR(VLOOKUP(D155,'Contracts (April 2022)'!C142:L663,3,FALSE),\"\")","v":""}]
[{"$nulls":4},{"$f":"IFERROR(VLOOKUP(D156,'Contracts (April 2022)'!C143:L664,3,FALSE),\"\")","v":""}]
[{"$nulls":4},{"$f":"IFERROR(VLOOKUP(D157,'Contracts (April 2022)'!C144:L665,3,FALSE),\"\")","v":""}]
[{"$nulls":4},{"$f":"IFERROR(VLOOKUP(D158,'Contracts (April 2022)'!C145:L666,3,FALSE),\"\")","v":""}]
[{"$nulls":4},{"$f":"IFERROR(VLOOKUP(D159,'Contracts (April 2022)'!C146:L667,3,FALSE),\"\")","v":""}]
[{"$nulls":4},{"$f":"IFERROR(VLOOKUP(D160,'Contracts (April 2022)'!C147:L668,3,FALSE),\"\")","v":""}]
[{"$nulls":4},{"$f":"IFERROR(VLOOKUP(D161,'Contracts (April 2022)'!C148:L669,3,FALSE),\"\")","v":""}]
[{"$nulls":4},{"$f":"IFERROR(VLOOKUP(D162,'Contracts (April 2022)'!C149:L670,3,FALSE),\"\")","v":""}]
[{"$nulls":4},{"$f":"IFERROR(VLOOKUP(D163,'Contracts (April 2022)'!C150:L671,3,FALSE),\"\")","v":""}]
[{"$nulls":4},{"$f":"IFERROR(VLOOKUP(D164,'Contracts (April 2022)'!C151:L672,3,FALSE),\"\")","v":""}]
[{"$nulls":4},{"$f":"IFERROR(VLOOKUP(D165,'Contracts (April 2022)'!C152:L673,3,FALSE),\"\")","v":""}]
[{"$nulls":4},{"$f":"IFERROR(VLOOKUP(D166,'Contracts (April 2022)'!C153:L674,3,FALSE),\"\")","v":""}]
[{"$nulls":4},{"$f":"IFERROR(VLOOKUP(D167,'Contracts (April 2022)'!C154:L675,3,FALSE),\"\")","v":""}]
[{"$nulls":4},{"$f":"IFERROR(VLOOKUP(D168,'Contracts (April 2022)'!C155:L676,3,FALSE),\"\")","v":""}]
[{"$nulls":4},{"$f":"IFERROR(VLOOKUP(D169,'Contracts (April 2022)'!C156:L677,3,FALSE),\"\")","v":""}]
[{"$nulls":4},{"$f":"IFERROR(VLOOKUP(D170,'Contracts (April 2022)'!C157:L678,3,FALSE),\"\")","v":""}]
[{"$nulls":4},{"$f":"IFERROR(VLOOKUP(D171,'Contracts (April 2022)'!C158:L679,3,FALSE),\"\")","v":""}]
[{"$nulls":4},{"$f":"IFERROR(VLOOKUP(D172,'Contracts (April 2022)'!C159:L680,3,FALSE),\"\")","v":""}]
[{"$nulls":4},{"$f":"IFERROR(VLOOKUP(D173,'Contracts (April 2022)'!C160:L681,3,FALSE),\"\")","v":""}]
[{"$nulls":4},{"$f":"IFERROR(VLOOKUP(D174,'Contracts (April 2022)'!C161:L682,3,FALSE),\"\")","v":""}]
[{"$nulls":4},{"$f":"IFERROR(VLOOKUP(D175,'Contracts (April 2022)'!C162:L683,3,FALSE),\"\")","v":""}]
[{"$nulls":4},{"$f":"IFERROR(VLOOKUP(D176,'Contracts (April 2022)'!C163:L684,3,FALSE),\"\")","v":""}]
[{"$nulls":4},{"$f":"IFERROR(VLOOKUP(D177,'Contracts (April 2022)'!C164:L685,3,FALSE),\"\")","v":""}]
[{"$nulls":4},{"$f":"IFERROR(VLOOKUP(D178,'Contracts (April 2022)'!C165:L686,3,FALSE),\"\")","v":""}]
[{"$nulls":4},{"$f":"IFERROR(VLOOKUP(D179,'Contracts (April 2022)'!C166:L687,3,FALSE),\"\")","v":""}]
[{"$nulls":4},{"$f":"IFERROR(VLOOKUP(D180,'Contracts (April 2022)'!C167:L688,3,FALSE),\"\")","v":""}]
[{"$nulls":4},{"$f":"IFERROR(VLOOKUP(D181,'Contracts (April 2022)'!C168:L689,3,FALSE),\"\")","v":""}]
[{"$nulls":4},{"$f":"IFERROR(VLOOKUP(D182,'Contracts (April 2022)'!C169:L690,3,FALSE),\"\")","v":""}]
[{"$nulls":4},{"$f":"IFERROR(VLOOKUP(D183,'Contracts (April 2022)'!C170:L691,3,FALSE),\"\")","v":""}]
[{"$nulls":4},{"$f":"IFERROR(VLOOKUP(D184,'Contracts (April 2022)'!C171:L692,3,FALSE),\"\")","v":""}]
[{"$nulls":4},{"$f":"IFERROR(VLOOKUP(D185,'Contracts (April 2022)'!C172:L693,3,FALSE),\"\")","v":""}]
[{"$nulls":4},{"$f":"IFERROR(VLOOKUP(D186,'Contracts (April 2022)'!C173:L694,3,FALSE),\"\")","v":""}]
[{"$nulls":4},{"$f":"IFERROR(VLOOKUP(D187,'Contracts (April 2022)'!C174:L695,3,FALSE),\"\")","v":""}]
[{"$nulls":4},{"$f":"IFERROR(VLOOKUP(D188,'Contracts (April 2022)'!C175:L696,3,FALSE),\"\")","v":""}]
[{"$nulls":4},{"$f":"IFERROR(VLOOKUP(D189,'Contracts (April 2022)'!C176:L697,3,FALSE),\"\")","v":""}]
[{"$nulls":4},{"$f":"IFERROR(VLOOKUP(D190,'Contracts (April 2022)'!C177:L698,3,FALSE),\"\")","v":""}]
[{"$nulls":4},{"$f":"IFERROR(VLOOKUP(D191,'Contracts (April 2022)'!C178:L699,3,FALSE),\"\")","v":""}]
[{"$nulls":4},{"$f":"IFERROR(VLOOKUP(D192,'Contracts (April 2022)'!C179:L700,3,FALSE),\"\")","v":""}]
[{"$nulls":4},{"$f":"IFERROR(VLOOKUP(D193,'Contracts (April 2022)'!C180:L701,3,FALSE),\"\")","v":""}]
[{"$nulls":4},{"$f":"IFERROR(VLOOKUP(D194,'Contracts (April 2022)'!C181:L702,3,FALSE),\"\")","v":""}]
[{"$nulls":4},{"$f":"IFERROR(VLOOKUP(D195,'Contracts (April 2022)'!C182:L703,3,FALSE),\"\")","v":""}]
[{"$nulls":4},{"$f":"IFERROR(VLOOKUP(D196,'Contracts (April 2022)'!C183:L704,3,FALSE),\"\")","v":""}]
[{"$nulls":4},{"$f":"IFERROR(VLOOKUP(D197,'Contracts (April 2022)'!C184:L705,3,FALSE),\"\")","v":""}]
[{"$nulls":4},{"$f":"IFERROR(VLOOKUP(D198,'Contracts (April 2022)'!C185:L706,3,FALSE),\"\")","v":""}]
[{"$nulls":4},{"$f":"IFERROR(VLOOKUP(D199,'Contracts (April 2022)'!C186:L707,3,FALSE),\"\")","v":""}]
[{"$nulls":4},{"$f":"IFERROR(VLOOKUP(D200,'Contracts (April 2022)'!C187:L708,3,FALSE),\"\")","v":""}]
[{"$nulls":4},{"$f":"IFERROR(VLOOKUP(D201,'Contracts (April 2022)'!C188:L709,3,FALSE),\"\")","v":""}]
[{"$nulls":4},{"$f":"IFERROR(VLOOKUP(D202,'Contracts (April 2022)'!C189:L710,3,FALSE),\"\")","v":""}]
[{"$nulls":4},{"$f":"IFERROR(VLOOKUP(D203,'Contracts (April 2022)'!C190:L711,3,FALSE),\"\")","v":""}]
[{"$nulls":4},{"$f":"IFERROR(VLOOKUP(D204,'Contracts (April 2022)'!C191:L712,3,FALSE),\"\")","v":""}]
[{"$nulls":4},{"$f":"IFERROR(VLOOKUP(D205,'Contracts (April 2022)'!C192:L713,3,FALSE),\"\")","v":""}]
[{"$nulls":4},{"$f":"IFERROR(VLOOKUP(D206,'Contracts (April 2022)'!C193:L714,3,FALSE),\"\")","v":""}]
[{"$nulls":4},{"$f":"IFERROR(VLOOKUP(D207,'Contracts (April 2022)'!C194:L715,3,FALSE),\"\")","v":""}]
[{"$nulls":4},{"$f":"IFERROR(VLOOKUP(D208,'Contracts (April 2022)'!C195:L716,3,FALSE),\"\")","v":""}]
[{"$nulls":4},{"$f":"IFERROR(VLOOKUP(D209,'Contracts (April 2022)'!C196:L717,3,FALSE),\"\")","v":""}]
[{"$nulls":4},{"$f":"IFERROR(VLOOKUP(D210,'Contracts (April 2022)'!C197:L718,3,FALSE),\"\")","v":""}]
[{"$nulls":4},{"$f":"IFERROR(VLOOKUP(D211,'Contracts (April 2022)'!C198:L719,3,FALSE),\"\")","v":""}]
[{"$nulls":4},{"$f":"IFERROR(VLOOKUP(D212,'Contracts (April 2022)'!C199:L720,3,FALSE),\"\")","v":""}]
[{"$nulls":4},{"$f":"IFERROR(VLOOKUP(D213,'Contracts (April 2022)'!C200:L721,3,FALSE),\"\")","v":""}]
[{"$nulls":4},{"$f":"IFERROR(VLOOKUP(D214,'Contracts (April 2022)'!C201:L722,3,FALSE),\"\")","v":""}]
[{"$nulls":4},{"$f":"IFERROR(VLOOKUP(D215,'Contracts (April 2022)'!C202:L723,3,FALSE),\"\")","v":""}]
[{"$nulls":4},{"$f":"IFERROR(VLOOKUP(D216,'Contracts (April 2022)'!C203:L724,3,FALSE),\"\")","v":""}]
[{"$nulls":4},{"$f":"IFERROR(VLOOKUP(D217,'Contracts (April 2022)'!C204:L725,3,FALSE),\"\")","v":""}]
[{"$nulls":4},{"$f":"IFERROR(VLOOKUP(D218,'Contracts (April 2022)'!C205:L726,3,FALSE),\"\")","v":""}]
[{"$nulls":4},{"$f":"IFERROR(VLOOKUP(D219,'Contracts (April 2022)'!C206:L727,3,FALSE),\"\")","v":""}]
[{"$nulls":4},{"$f":"IFERROR(VLOOKUP(D220,'Contracts (April 2022)'!C207:L728,3,FALSE),\"\")","v":""}]
[{"$nulls":4},{"$f":"IFERROR(VLOOKUP(D221,'Contracts (April 2022)'!C208:L729,3,FALSE),\"\")","v":""}]
[{"$nulls":4},{"$f":"IFERROR(VLOOKUP(D222,'Contracts (April 2022)'!C209:L730,3,FALSE),\"\")","v":""}]
[{"$nulls":4},{"$f":"IFERROR(VLOOKUP(D223,'Contracts (April 2022)'!C210:L731,3,FALSE),\"\")","v":""}]
[{"$nulls":4},{"$f":"IFERROR(VLOOKUP(D224,'Contracts (April 2022)'!C211:L732,3,FALSE),\"\")","v":""}]
[{"$nulls":4},{"$f":"IFERROR(VLOOKUP(D225,'Contracts (April 2022)'!C212:L733,3,FALSE),\"\")","v":""}]
[{"$nulls":4},{"$f":"IFERROR(VLOOKUP(D226,'Contracts (April 2022)'!C213:L734,3,FALSE),\"\")","v":""}]
[{"$nulls":4},{"$f":"IFERROR(VLOOKUP(D227,'Contracts (April 2022)'!C214:L735,3,FALSE),\"\")","v":""}]
[{"$nulls":4},{"$f":"IFERROR(VLOOKUP(D228,'Contracts (April 2022)'!C215:L736,3,FALSE),\"\")","v":""}]
[{"$nulls":4},{"$f":"IFERROR(VLOOKUP(D229,'Contracts (April 2022)'!C216:L737,3,FALSE),\"\")","v":""}]
[{"$nulls":4},{"$f":"IFERROR(VLOOKUP(D230,'Contracts (April 2022)'!C217:L738,3,FALSE),\"\")","v":""}]
[{"$nulls":4},{"$f":"IFERROR(VLOOKUP(D231,'Contracts (April 2022)'!C218:L739,3,FALSE),\"\")","v":""}]
[{"$nulls":4},{"$f":"IFERROR(VLOOKUP(D232,'Contracts (April 2022)'!C219:L740,3,FALSE),\"\")","v":""}]
[{"$nulls":4},{"$f":"IFERROR(VLOOKUP(D233,'Contracts (April 2022)'!C220:L741,3,FALSE),\"\")","v":""}]
[{"$nulls":4},{"$f":"IFERROR(VLOOKUP(D234,'Contracts (April 2022)'!C221:L742,3,FALSE),\"\")","v":""}]
[{"$nulls":4},{"$f":"IFERROR(VLOOKUP(D235,'Contracts (April 2022)'!C222:L743,3,FALSE),\"\")","v":""}]
[{"$nulls":4},{"$f":"IFERROR(VLOOKUP(D236,'Contracts (April 2022)'!C223:L744,3,FALSE),\"\")","v":""}]
[{"$nulls":4},{"$f":"IFERROR(VLOOKUP(D237,'Contracts (April 2022)'!C224:L745,3,FALSE),\"\")","v":""}]
[{"$nulls":4},{"$f":"IFERROR(VLOOKUP(D238,'Contracts (April 2022)'!C225:L746,3,FALSE),\"\")","v":""}]
[{"$nulls":4},{"$f":"IFERROR(VLOOKUP(D239,'Contracts (April 2022)'!C226:L747,3,FALSE),\"\")","v":""}]
[{"$nulls":4},{"$f":"IFERROR(VLOOKUP(D240,'Contracts (April 2022)'!C227:L748,3,FALSE),\"\")","v":""}]
[{"$nulls":4},{"$f":"IFERROR(VLOOKUP(D241,'Contracts (April 2022)'!C228:L749,3,FALSE),\"\")","v":""}]
[{"$nulls":4},{"$f":"IFERROR(VLOOKUP(D242,'Contracts (April 2022)'!C229:L750,3,FALSE),\"\")","v":""}]
[{"$nulls":4},{"$f":"IFERROR(VLOOKUP(D243,'Contracts (April 2022)'!C230:L751,3,FALSE),\"\")","v":""}]
[{"$nulls":4},{"$f":"IFERROR(VLOOKUP(D244,'Contracts (April 2022)'!C231:L752,3,FALSE),\"\")","v":""}]
[{"$nulls":4},{"$f":"IFERROR(VLOOKUP(D245,'Contracts (April 2022)'!C232:L753,3,FALSE),\"\")","v":""}]
[{"$nulls":4},{"$f":"IFERROR(VLOOKUP(D246,'Contracts (April 2022)'!C233:L754,3,FALSE),\"\")","v":""}]
[{"$nulls":4},{"$f":"IFERROR(VLOOKUP(D247,'Contracts (April 2022)'!C234:L755,3,FALSE),\"\")","v":""}]
[{"$nulls":4},{"$f":"IFERROR(VLOOKUP(D248,'Contracts (April 2022)'!C235:L756,3,FALSE),\"\")","v":""}]
[{"$nulls":4},{"$f":"IFERROR(VLOOKUP(D249,'Contracts (April 2022)'!C236:L757,3,FALSE),\"\")","v":""}]
[{"$nulls":4},{"$f":"IFERROR(VLOOKUP(D250,'Contracts (April 2022)'!C237:L758,3,FALSE),\"\")","v":""}]
[{"$nulls":4},{"$f":"IFERROR(VLOOKUP(D251,'Contracts (April 2022)'!C238:L759,3,FALSE),\"\")","v":""}]
[{"$nulls":4},{"$f":"IFERROR(VLOOKUP(D252,'Contracts (April 2022)'!C239:L760,3,FALSE),\"\")","v":""}]
[{"$nulls":4},{"$f":"IFERROR(VLOOKUP(D253,'Contracts (April 2022)'!C240:L761,3,FALSE),\"\")","v":""}]
[{"$nulls":4},{"$f":"IFERROR(VLOOKUP(D254,'Contracts (April 2022)'!C241:L762,3,FALSE),\"\")","v":""}]
[{"$nulls":4},{"$f":"IFERROR(VLOOKUP(D255,'Contracts (April 2022)'!C242:L763,3,FALSE),\"\")","v":""}]
[{"$nulls":4},{"$f":"IFERROR(VLOOKUP(D256,'Contracts (April 2022)'!C243:L764,3,FALSE),\"\")","v":""}]
[{"$nulls":4},{"$f":"IFERROR(VLOOKUP(D257,'Contracts (April 2022)'!C244:L765,3,FALSE),\"\")","v":""}]
[{"$nulls":4},{"$f":"IFERROR(VLOOKUP(D258,'Contracts (April 2022)'!C245:L766,3,FALSE),\"\")","v":""}]
[{"$nulls":4},{"$f":"IFERROR(VLOOKUP(D259,'Contracts (April 2022)'!C246:L767,3,FALSE),\"\")","v":""}]
[{"$nulls":4},{"$f":"IFERROR(VLOOKUP(D260,'Contracts (April 2022)'!C247:L768,3,FALSE),\"\")","v":""}]
[{"$nulls":4},{"$f":"IFERROR(VLOOKUP(D261,'Contracts (April 2022)'!C248:L769,3,FALSE),\"\")","v":""}]
[{"$nulls":4},{"$f":"IFERROR(VLOOKUP(D262,'Contracts (April 2022)'!C249:L770,3,FALSE),\"\")","v":""}]
[{"$nulls":4},{"$f":"IFERROR(VLOOKUP(D263,'Contracts (April 2022)'!C250:L771,3,FALSE),\"\")","v":""}]
[{"$nulls":4},{"$f":"IFERROR(VLOOKUP(D264,'Contracts (April 2022)'!C251:L772,3,FALSE),\"\")","v":""}]
[{"$nulls":4},{"$f":"IFERROR(VLOOKUP(D265,'Contracts (April 2022)'!C252:L773,3,FALSE),\"\")","v":""}]
[{"$nulls":4},{"$f":"IFERROR(VLOOKUP(D266,'Contracts (April 2022)'!C253:L774,3,FALSE),\"\")","v":""}]
[{"$nulls":4},{"$f":"IFERROR(VLOOKUP(D267,'Contracts (April 2022)'!C254:L775,3,FALSE),\"\")","v":""}]
[{"$nulls":4},{"$f":"IFERROR(VLOOKUP(D268,'Contracts (April 2022)'!C255:L776,3,FALSE),\"\")","v":""}]
[{"$nulls":4},{"$f":"IFERROR(VLOOKUP(D269,'Contracts (April 2022)'!C256:L777,3,FALSE),\"\")","v":""}]
[{"$nulls":4},{"$f":"IFERROR(VLOOKUP(D270,'Contracts (April 2022)'!C257:L778,3,FALSE),\"\")","v":""}]
[{"$nulls":4},{"$f":"IFERROR(VLOOKUP(D271,'Contracts (April 2022)'!C258:L779,3,FALSE),\"\")","v":""}]
[{"$nulls":4},{"$f":"IFERROR(VLOOKUP(D272,'Contracts (April 2022)'!C259:L780,3,FALSE),\"\")","v":""}]
[{"$nulls":4},{"$f":"IFERROR(VLOOKUP(D273,'Contracts (April 2022)'!C260:L781,3,FALSE),\"\")","v":""}]
[{"$nulls":4},{"$f":"IFERROR(VLOOKUP(D274,'Contracts (April 2022)'!C261:L782,3,FALSE),\"\")","v":""}]
[{"$nulls":4},{"$f":"IFERROR(VLOOKUP(D275,'Contracts (April 2022)'!C262:L783,3,FALSE),\"\")","v":""}]
[{"$nulls":4},{"$f":"IFERROR(VLOOKUP(D276,'Contracts (April 2022)'!C263:L784,3,FALSE),\"\")","v":""}]
[{"$nulls":4},{"$f":"IFERROR(VLOOKUP(D277,'Contracts (April 2022)'!C264:L785,3,FALSE),\"\")","v":""}]
[{"$nulls":4},{"$f":"IFERROR(VLOOKUP(D278,'Contracts (April 2022)'!C265:L786,3,FALSE),\"\")","v":""}]
[{"$nulls":4},{"$f":"IFERROR(VLOOKUP(D279,'Contracts (April 2022)'!C266:L787,3,FALSE),\"\")","v":""}]
[{"$nulls":4},{"$f":"IFERROR(VLOOKUP(D280,'Contracts (April 2022)'!C267:L788,3,FALSE),\"\")","v":""}]
[{"$nulls":4},{"$f":"IFERROR(VLOOKUP(D281,'Contracts (April 2022)'!C268:L789,3,FALSE),\"\")","v":""}]
[{"$nulls":4},{"$f":"IFERROR(VLOOKUP(D282,'Contracts (April 2022)'!C269:L790,3,FALSE),\"\")","v":""}]
[{"$nulls":4},{"$f":"IFERROR(VLOOKUP(D283,'Contracts (April 2022)'!C270:L791,3,FALSE),\"\")","v":""}]
[{"$nulls":4},{"$f":"IFERROR(VLOOKUP(D284,'Contracts (April 2022)'!C271:L792,3,FALSE),\"\")","v":""}]
[{"$nulls":4},{"$f":"IFERROR(VLOOKUP(D285,'Contracts (April 2022)'!C272:L793,3,FALSE),\"\")","v":""}]
[{"$nulls":4},{"$f":"IFERROR(VLOOKUP(D286,'Contracts (April 2022)'!C273:L794,3,FALSE),\"\")","v":""}]
[{"$nulls":4},{"$f":"IFERROR(VLOOKUP(D287,'Contracts (April 2022)'!C274:L795,3,FALSE),\"\")","v":""}]
[{"$nulls":4},{"$f":"IFERROR(VLOOKUP(D288,'Contracts (April 2022)'!C275:L796,3,FALSE),\"\")","v":""}]
[{"$nulls":4},{"$f":"IFERROR(VLOOKUP(D289,'Contracts (April 2022)'!C276:L797,3,FALSE),\"\")","v":""}]
[{"$nulls":4},{"$f":"IFERROR(VLOOKUP(D290,'Contracts (April 2022)'!C277:L798,3,FALSE),\"\")","v":""}]
[{"$nulls":4},{"$f":"IFERROR(VLOOKUP(D291,'Contracts (April 2022)'!C278:L799,3,FALSE),\"\")","v":""}]
[{"$nulls":4},{"$f":"IFERROR(VLOOKUP(D292,'Contracts (April 2022)'!C279:L800,3,FALSE),\"\")","v":""}]
[{"$nulls":4},{"$f":"IFERROR(VLOOKUP(D293,'Contracts (April 2022)'!C280:L801,3,FALSE),\"\")","v":""}]
[{"$nulls":4},{"$f":"IFERROR(VLOOKUP(D294,'Contracts (April 2022)'!C281:L802,3,FALSE),\"\")","v":""}]
[{"$nulls":4},{"$f":"IFERROR(VLOOKUP(D295,'Contracts (April 2022)'!C282:L803,3,FALSE),\"\")","v":""}]
[{"$nulls":4},{"$f":"IFERROR(VLOOKUP(D296,'Contracts (April 2022)'!C283:L804,3,FALSE),\"\")","v":""}]
[{"$nulls":4},{"$f":"IFERROR(VLOOKUP(D297,'Contracts (April 2022)'!C284:L805,3,FALSE),\"\")","v":""}]
[{"$nulls":4},{"$f":"IFERROR(VLOOKUP(D298,'Contracts (April 2022)'!C285:L806,3,FALSE),\"\")","v":""}]
[{"$nulls":4},{"$f":"IFERROR(VLOOKUP(D299,'Contracts (April 2022)'!C286:L807,3,FALSE),\"\")","v":""}]
[{"$nulls":4},{"$f":"IFERROR(VLOOKUP(D300,'Contracts (April 2022)'!C287:L808,3,FALSE),\"\")","v":""}]
[{"$nulls":4},{"$f":"IFERROR(VLOOKUP(D301,'Contracts (April 2022)'!C288:L809,3,FALSE),\"\")","v":""}]
[{"$nulls":4},{"$f":"IFERROR(VLOOKUP(D302,'Contracts (April 2022)'!C289:L810,3,FALSE),\"\")","v":""}]
[{"$nulls":4},{"$f":"IFERROR(VLOOKUP(D303,'Contracts (April 2022)'!C290:L811,3,FALSE),\"\")","v":""}]
[{"$nulls":4},{"$f":"IFERROR(VLOOKUP(D304,'Contracts (April 2022)'!C291:L812,3,FALSE),\"\")","v":""}]
[{"$nulls":4},{"$f":"IFERROR(VLOOKUP(D305,'Contracts (April 2022)'!C292:L813,3,FALSE),\"\")","v":""}]
[{"$nulls":4},{"$f":"IFERROR(VLOOKUP(D306,'Contracts (April 2022)'!C293:L814,3,FALSE),\"\")","v":""}]
[{"$nulls":4},{"$f":"IFERROR(VLOOKUP(D307,'Contracts (April 2022)'!C294:L815,3,FALSE),\"\")","v":""}]
[{"$nulls":4},{"$f":"IFERROR(VLOOKUP(D308,'Contracts (April 2022)'!C295:L816,3,FALSE),\"\")","v":""}]
[{"$nulls":4},{"$f":"IFERROR(VLOOKUP(D309,'Contracts (April 2022)'!C296:L817,3,FALSE),\"\")","v":""}]
[{"$nulls":4},{"$f":"IFERROR(VLOOKUP(D310,'Contracts (April 2022)'!C297:L818,3,FALSE),\"\")","v":""}]
[{"$nulls":4},{"$f":"IFERROR(VLOOKUP(D311,'Contracts (April 2022)'!C298:L819,3,FALSE),\"\")","v":""}]
[{"$nulls":4},{"$f":"IFERROR(VLOOKUP(D312,'Contracts (April 2022)'!C299:L820,3,FALSE),\"\")","v":""}]
[{"$nulls":4},{"$f":"IFERROR(VLOOKUP(D313,'Contracts (April 2022)'!C300:L821,3,FALSE),\"\")","v":""}]
[{"$nulls":4},{"$f":"IFERROR(VLOOKUP(D314,'Contracts (April 2022)'!C301:L822,3,FALSE),\"\")","v":""}]
[{"$nulls":4},{"$f":"IFERROR(VLOOKUP(D315,'Contracts (April 2022)'!C302:L823,3,FALSE),\"\")","v":""}]
[{"$nulls":4},{"$f":"IFERROR(VLOOKUP(D316,'Contracts (April 2022)'!C303:L824,3,FALSE),\"\")","v":""}]
[{"$nulls":4},{"$f":"IFERROR(VLOOKUP(D317,'Contracts (April 2022)'!C304:L825,3,FALSE),\"\")","v":""}]
[{"$nulls":4},{"$f":"IFERROR(VLOOKUP(D318,'Contracts (April 2022)'!C305:L826,3,FALSE),\"\")","v":""}]
[{"$nulls":4},{"$f":"IFERROR(VLOOKUP(D319,'Contracts (April 2022)'!C306:L827,3,FALSE),\"\")","v":""}]
[{"$nulls":4},{"$f":"IFERROR(VLOOKUP(D320,'Contracts (April 2022)'!C307:L828,3,FALSE),\"\")","v":""}]
[{"$nulls":4},{"$f":"IFERROR(VLOOKUP(D321,'Contracts (April 2022)'!C308:L829,3,FALSE),\"\")","v":""}]
[{"$nulls":4},{"$f":"IFERROR(VLOOKUP(D322,'Contracts (April 2022)'!C309:L830,3,FALSE),\"\")","v":""}]
[{"$nulls":4},{"$f":"IFERROR(VLOOKUP(D323,'Contracts (April 2022)'!C310:L831,3,FALSE),\"\")","v":""}]
[{"$nulls":4},{"$f":"IFERROR(VLOOKUP(D324,'Contracts (April 2022)'!C311:L832,3,FALSE),\"\")","v":""}]
[{"$nulls":4},{"$f":"IFERROR(VLOOKUP(D325,'Contracts (April 2022)'!C312:L833,3,FALSE),\"\")","v":""}]
[{"$nulls":4},{"$f":"IFERROR(VLOOKUP(D326,'Contracts (April 2022)'!C313:L834,3,FALSE),\"\")","v":""}]
[{"$nulls":4},{"$f":"IFERROR(VLOOKUP(D327,'Contracts (April 2022)'!C314:L835,3,FALSE),\"\")","v":""}]
[{"$nulls":4},{"$f":"IFERROR(VLOOKUP(D328,'Contracts (April 2022)'!C315:L836,3,FALSE),\"\")","v":""}]
[{"$nulls":4},{"$f":"IFERROR(VLOOKUP(D329,'Contracts (April 2022)'!C316:L837,3,FALSE),\"\")","v":""}]
[{"$nulls":4},{"$f":"IFERROR(VLOOKUP(D330,'Contracts (April 2022)'!C317:L838,3,FALSE),\"\")","v":""}]
[{"$nulls":4},{"$f":"IFERROR(VLOOKUP(D331,'Contracts (April 2022)'!C318:L839,3,FALSE),\"\")","v":""}]
[{"$nulls":4},{"$f":"IFERROR(VLOOKUP(D332,'Contracts (April 2022)'!C319:L840,3,FALSE),\"\")","v":""}]
[{"$nulls":4},{"$f":"IFERROR(VLOOKUP(D333,'Contracts (April 2022)'!C320:L841,3,FALSE),\"\")","v":""}]
[{"$nulls":4},{"$f":"IFERROR(VLOOKUP(D334,'Contracts (April 2022)'!C321:L842,3,FALSE),\"\")","v":""}]
[{"$nulls":4},{"$f":"IFERROR(VLOOKUP(D335,'Contracts (April 2022)'!C322:L843,3,FALSE),\"\")","v":""}]
[{"$nulls":4},{"$f":"IFERROR(VLOOKUP(D336,'Contracts (April 2022)'!C323:L844,3,FALSE),\"\")","v":""}]
[{"$nulls":4},{"$f":"IFERROR(VLOOKUP(D337,'Contracts (April 2022)'!C324:L845,3,FALSE),\"\")","v":""}]
[{"$nulls":4},{"$f":"IFERROR(VLOOKUP(D338,'Contracts (April 2022)'!C325:L846,3,FALSE),\"\")","v":""}]
[{"$nulls":4},{"$f":"IFERROR(VLOOKUP(D339,'Contracts (April 2022)'!C326:L847,3,FALSE),\"\")","v":""}]
[{"$nulls":4},{"$f":"IFERROR(VLOOKUP(D340,'Contracts (April 2022)'!C327:L848,3,FALSE),\"\")","v":""}]
[{"$nulls":4},{"$f":"IFERROR(VLOOKUP(D341,'Contracts (April 2022)'!C328:L849,3,FALSE),\"\")","v":""}]
[{"$nulls":4},{"$f":"IFERROR(VLOOKUP(D342,'Contracts (April 2022)'!C329:L850,3,FALSE),\"\")","v":""}]
[{"$nulls":4},{"$f":"IFERROR(VLOOKUP(D343,'Contracts (April 2022)'!C330:L851,3,FALSE),\"\")","v":""}]
[{"$nulls":4},{"$f":"IFERROR(VLOOKUP(D344,'Contracts (April 2022)'!C331:L852,3,FALSE),\"\")","v":""}]
[{"$nulls":4},{"$f":"IFERROR(VLOOKUP(D345,'Contracts (April 2022)'!C332:L853,3,FALSE),\"\")","v":""}]
[{"$nulls":4},{"$f":"IFERROR(VLOOKUP(D346,'Contracts (April 2022)'!C333:L854,3,FALSE),\"\")","v":""}]
[{"$nulls":4},{"$f":"IFERROR(VLOOKUP(D347,'Contracts (April 2022)'!C334:L855,3,FALSE),\"\")","v":""}]
[{"$nulls":4},{"$f":"IFERROR(VLOOKUP(D348,'Contracts (April 2022)'!C335:L856,3,FALSE),\"\")","v":""}]
[{"$nulls":4},{"$f":"IFERROR(VLOOKUP(D349,'Contracts (April 2022)'!C336:L857,3,FALSE),\"\")","v":""}]
[{"$nulls":4},{"$f":"IFERROR(VLOOKUP(D350,'Contracts (April 2022)'!C337:L858,3,FALSE),\"\")","v":""}]
[{"$nulls":4},{"$f":"IFERROR(VLOOKUP(D351,'Contracts (April 2022)'!C338:L859,3,FALSE),\"\")","v":""}]
[{"$nulls":4},{"$f":"IFERROR(VLOOKUP(D352,'Contracts (April 2022)'!C339:L860,3,FALSE),\"\")","v":""}]
[{"$nulls":4},{"$f":"IFERROR(VLOOKUP(D353,'Contracts (April 2022)'!C340:L861,3,FALSE),\"\")","v":""}]
[{"$nulls":4},{"$f":"IFERROR(VLOOKUP(D354,'Contracts (April 2022)'!C341:L862,3,FALSE),\"\")","v":""}]
[{"$nulls":4},{"$f":"IFERROR(VLOOKUP(D355,'Contracts (April 2022)'!C342:L863,3,FALSE),\"\")","v":""}]
[{"$nulls":4},{"$f":"IFERROR(VLOOKUP(D356,'Contracts (April 2022)'!C343:L864,3,FALSE),\"\")","v":""}]
[{"$nulls":4},{"$f":"IFERROR(VLOOKUP(D357,'Contracts (April 2022)'!C344:L865,3,FALSE),\"\")","v":""}]
[{"$nulls":4},{"$f":"IFERROR(VLOOKUP(D358,'Contracts (April 2022)'!C345:L866,3,FALSE),\"\")","v":""}]
[{"$nulls":4},{"$f":"IFERROR(VLOOKUP(D359,'Contracts (April 2022)'!C346:L867,3,FALSE),\"\")","v":""}]
[{"$nulls":4},{"$f":"IFERROR(VLOOKUP(D360,'Contracts (April 2022)'!C347:L868,3,FALSE),\"\")","v":""}]
[{"$nulls":4},{"$f":"IFERROR(VLOOKUP(D361,'Contracts (April 2022)'!C348:L869,3,FALSE),\"\")","v":""}]
[{"$nulls":4},{"$f":"IFERROR(VLOOKUP(D362,'Contracts (April 2022)'!C349:L870,3,FALSE),\"\")","v":""}]
[{"$nulls":4},{"$f":"IFERROR(VLOOKUP(D363,'Contracts (April 2022)'!C350:L871,3,FALSE),\"\")","v":""}]
[{"$nulls":4},{"$f":"IFERROR(VLOOKUP(D364,'Contracts (April 2022)'!C351:L872,3,FALSE),\"\")","v":""}]
[{"$nulls":4},{"$f":"IFERROR(VLOOKUP(D365,'Contracts (April 2022)'!C352:L873,3,FALSE),\"\")","v":""}]
[{"$nulls":4},{"$f":"IFERROR(VLOOKUP(D366,'Contracts (April 2022)'!C353:L874,3,FALSE),\"\")","v":""}]
[{"$nulls":4},{"$f":"IFERROR(VLOOKUP(D367,'Contracts (April 2022)'!C354:L875,3,FALSE),\"\")","v":""}]
[{"$nulls":4},{"$f":"IFERROR(VLOOKUP(D368,'Contracts (April 2022)'!C355:L876,3,FALSE),\"\")","v":""}]
[{"$nulls":4},{"$f":"IFERROR(VLOOKUP(D369,'Contracts (April 2022)'!C356:L877,3,FALSE),\"\")","v":""}]
[{"$nulls":4},{"$f":"IFERROR(VLOOKUP(D370,'Contracts (April 2022)'!C357:L878,3,FALSE),\"\")","v":""}]
[{"$nulls":4},{"$f":"IFERROR(VLOOKUP(D371,'Contracts (April 2022)'!C358:L879,3,FALSE),\"\")","v":""}]
[{"$nulls":4},{"$f":"IFERROR(VLOOKUP(D372,'Contracts (April 2022)'!C359:L880,3,FALSE),\"\")","v":""}]
[{"$nulls":4},{"$f":"IFERROR(VLOOKUP(D373,'Contracts (April 2022)'!C360:L881,3,FALSE),\"\")","v":""}]
[{"$nulls":4},{"$f":"IFERROR(VLOOKUP(D374,'Contracts (April 2022)'!C361:L882,3,FALSE),\"\")","v":""}]
[{"$nulls":4},{"$f":"IFERROR(VLOOKUP(D375,'Contracts (April 2022)'!C362:L883,3,FALSE),\"\")","v":""}]
[{"$nulls":4},{"$f":"IFERROR(VLOOKUP(D376,'Contracts (April 2022)'!C363:L884,3,FALSE),\"\")","v":""}]
[{"$nulls":4},{"$f":"IFERROR(VLOOKUP(D377,'Contracts (April 2022)'!C364:L885,3,FALSE),\"\")","v":""}]
[{"$nulls":4},{"$f":"IFERROR(VLOOKUP(D378,'Contracts (April 2022)'!C365:L886,3,FALSE),\"\")","v":""}]
[{"$nulls":4},{"$f":"IFERROR(VLOOKUP(D379,'Contracts (April 2022)'!C366:L887,3,FALSE),\"\")","v":""}]
[{"$nulls":4},{"$f":"IFERROR(VLOOKUP(D380,'Contracts (April 2022)'!C367:L888,3,FALSE),\"\")","v":""}]
[{"$nulls":4},{"$f":"IFERROR(VLOOKUP(D381,'Contracts (April 2022)'!C368:L889,3,FALSE),\"\")","v":""}]
[{"$nulls":4},{"$f":"IFERROR(VLOOKUP(D382,'Contracts (April 2022)'!C369:L890,3,FALSE),\"\")","v":""}]
[{"$nulls":4},{"$f":"IFERROR(VLOOKUP(D383,'Contracts (April 2022)'!C370:L891,3,FALSE),\"\")","v":""}]
[{"$nulls":4},{"$f":"IFERROR(VLOOKUP(D384,'Contracts (April 2022)'!C371:L892,3,FALSE),\"\")","v":""}]
[{"$nulls":4},{"$f":"IFERROR(VLOOKUP(D385,'Contracts (April 2022)'!C372:L893,3,FALSE),\"\")","v":""}]
[{"$nulls":4},{"$f":"IFERROR(VLOOKUP(D386,'Contracts (April 2022)'!C373:L894,3,FALSE),\"\")","v":""}]
[{"$nulls":4},{"$f":"IFERROR(VLOOKUP(D387,'Contracts (April 2022)'!C374:L895,3,FALSE),\"\")","v":""}]
[{"$nulls":4},{"$f":"IFERROR(VLOOKUP(D388,'Contracts (April 2022)'!C375:L896,3,FALSE),\"\")","v":""}]
[{"$nulls":4},{"$f":"IFERROR(VLOOKUP(D389,'Contracts (April 2022)'!C376:L897,3,FALSE),\"\")","v":""}]
[{"$nulls":4},{"$f":"IFERROR(VLOOKUP(D390,'Contracts (April 2022)'!C377:L898,3,FALSE),\"\")","v":""}]
[{"$nulls":4},{"$f":"IFERROR(VLOOKUP(D391,'Contracts (April 2022)'!C378:L899,3,FALSE),\"\")","v":""}]
[{"$nulls":4},{"$f":"IFERROR(VLOOKUP(D392,'Contracts (April 2022)'!C379:L900,3,FALSE),\"\")","v":""}]
[{"$nulls":4},{"$f":"IFERROR(VLOOKUP(D393,'Contracts (April 2022)'!C380:L901,3,FALSE),\"\")","v":""}]

{"sheet":"Contact Information","index":1,"n_rows":11,"n_cols":3,"rows_kept":11}
["If you wish to contact our contract specialists to provide further details - their information can be found below. "]
[]
["Category","Name","Email"]
["Capital Equipment","Shenu Devaraja","sdevaraja@healthprocanada.com "]
["Clinical - Anesthesia/Respiratory & Diagnostic Imaging/Interventional","Kacper Kolodziejczyk","kkolodziejczyk@healthprocanada.com"]
["Clinical - Med/Surg","Joon Cho","jcho@healthprocanada.com"]
["Clinical - Med/Surg","Saleha Hussain","shussain@healthprocanada.com"]
["Clinical - OR/MDR","Courtney Smith","csmith@healthprocanada.com "]
["Clinical - Wound Care & Allied Health/IPAC","Hannah Kerr","hkerr@healthprocanada.com"]
["Signature Services","Geget Marballie","gmarballie@healthprocanada.com "]
["Support Services","Gabriel Noblecilla","gnoblecilla@healthprocanada.com "]

{"sheet":"Contracts (April 2022)","index":2,"n_rows":525,"n_cols":12,"rows_kept":525,"hidden":true}
[null,"Service","Contract No.","Type","Contract Name","Contract Start Date","Contract End Date"," Option Years"," Option Years Decision","Compliance","Category Lead/Business Director","Category"]
[null,"CL","01052","CA","AWC - Impregnated Foam - Ibuprofen","2016-06-01","2023-05-31","2 Years","All Years Exercised","80%-100%","Christina Singh","WCAHI"]
[null,"CL","01138","CA","Contrast Media - Mri","2016-12-01","2023-11-30","2 Years","All Years Exercised","80%-100%","Luna Attia","ARDI"]
[null,"CL","01141","CA","Pressure Offloading Boots","2016-06-01","2022-11-30","2 Years","1.5 Years Exercised","80%-100%","Amarpreet Bambrah","MEDSURG"]
[null,"CL","01142","CA","AWC - Highly Absorbent Dressings","2016-06-01","2023-05-31","2 Years","All Years Exercised","80%-100%","Christina Singh","WCAHI"]
[null,"CL","01144","CA","Bowel Management System (BMS)","2015-06-01","2022-11-30","2 Years","All Years, plus 6 Month Extension Exercised","80%-100%","Amarpreet Bambrah","MEDSURG"]
[null,"CL","01153","CA","AWC - Protease Modulating Matrix","2016-06-01","2023-05-31","2 Years","All Years Exercised","80%-100%","Christina Singh","WCAHI"]
[null,"CL","01159","CA","AWC - Antimicrobial Honey Products","2016-06-01","2023-05-31","2 Years","All Years Exercised","80%-100%","Christina Singh","WCAHI"]
[null,"CL","01466","CA","Contrast Media - Non-Ionic","2016-12-01","2023-11-30","2 Years","All Years Exercised","80%-100%","Luna Attia","ARDI"]
[null,"CL","01468","CA","Contrast Media - Power Syringe & Accessories","2016-12-01","2023-11-30","2 Years","All Years Exercised","80%-100%","Luna Attia","ARDI"]
[null,"CL","01473","CA","Contrast Media - Oral","2016-12-01","2023-11-30","2 Years","All Years Exercised","80%-100%","Luna Attia","ARDI"]
[null,"CL","01479","CA","Vascular Grafts - Polyester","2014-12-01","2022-05-31","2 Years + 2 Years","All Years, plus 6 Month Extension Exercised.","100%","Adrienne Alexander","OR/MDR"]
[null,"CL","01479","CA","Vascular Grafts","2022-06-01","2028-05-31","2 Years","Available","80%-100%","Adrienne Alexander","OR/MDR"]
[null,"CL","01514","CA","Contrast Media - Barium","2016-12-01","2023-11-30","2 Years","All Years Exercised","80%-100%","Luna Attia","ARDI"]
[null,"CL","01604","CA","AWC - Antimicrobial - Phmb Products","2016-06-01","2023-05-31","2 Years","All Years Exercised","80%-100%","Christina Singh","WCAHI"]
[null,"CL","01606","CA","AWC - Antimicrobial Cadexomer Iodine Products","2016-06-01","2023-05-31","2 Years","All Years Exercised","80%-100%","Christina Singh","WCAHI"]
[null,"CL","01607","CA","AWC - Antimicrobial Povidone Iodine Dressings","2016-06-01","2023-05-31","2 Years","All Years Exercised","80%-100%","Christina Singh","WCAHI"]
[null,"CL","01608","CA","AWC - Biological Wound Matrix","2016-06-01","2023-05-31","2 Years","All Years Exercised","80%-100%","Christina Singh","WCAHI"]
[null,"CL","01611","CA","AWC - Contact Layer - Soft Silicone","2016-06-01","2023-05-31","2 Years","All Years Exercised","80%-100%","Christina Singh","WCAHI"]
[null,"CL","01613","CA","AWC - Debriders - Hypertonic Sodium Chloride","2016-06-01","2023-05-31","2 Years","All Years Exercised","80%-100%","Christina Singh","WCAHI"]
[null,"CL","01614","CA","AWC - Foams Dressings - Silicone","2016-06-01","2023-05-31","2 Years","All Years Exercised","80%-100%","Christina Singh","WCAHI"]
[null,"CL","01620","CA","AWC - Impregnated Bandage - Zinc","2016-06-01","2023-05-31","2 Years","All Years Exercised","80%-100%","Christina Singh","WCAHI"]
[null,"CL","01621","CA","AWC - Impregnated Gauze - Paraffin","2016-06-01","2023-05-31","2 Years","All Years Exercised","80%-100%","Christina Singh","WCAHI"]
[null,"CL","01622","CA","Wet Dressings - Isotonic Sodium Chloride","2016-06-01","2023-05-31","2 Years","All Years Exercised","80%-100%","Christina Singh","WCAHI"]
[null,"CL","01623","CA","AWC - Scar Therapy Dressings","2016-06-01","2023-05-31","2 Years","All Years Exercised","80%-100%","Christina Singh","WCAHI"]
[null,"CL","01627","CA","Skin Integrity - Specialty - Barrier Film","2021-06-01","2029-05-31","2 Years","Available","80%-100%","Christina Singh","WCAHI"]
[null,"CL","01628","CA","Skin Integrity - Adhesive Remover","2021-06-01","2029-05-31","2 Years","Available","80%-100%","Christina Singh","WCAHI"]
[null,"CL","01630","CA","AWC - Antimicrobial Silver Hydrogel","2016-06-01","2023-05-31","2 Years","All Years Exercised","80%-100%","Christina Singh","WCAHI"]
[null,"CL","01633","CA","AWC - Antimicrobial Silver Foam Dressings","2016-06-01","2023-05-31","2 Years","All Years Exercised","80%-100%","Christina Singh","WCAHI"]
[null,"CL","01634","CA","AWC - Antimicrobial Silver Sheet","2016-06-01","2023-05-31","2 Years","All Years Exercised","80%-100%","Christina Singh","WCAHI"]
[null,"CL","01635","CA","AWC - Wound Cleansers - Isotonic","2016-06-01","2023-05-31","2 Years","All Years Exercised","80%-100%","Christina Singh","WCAHI"]
[null,"CL","01649","CA","AWC - Impregnated Gauze - Petrolatum","2016-06-01","2023-05-31","2 Years","All Years Exercised","80%-100%","Christina Singh","WCAHI"]
[null,"CL","01651","CA","Tubular Elastic Bandage","2016-06-01","2024-05-31","2 Years","Available","80%-100%","Amarpreet Bambrah","MEDSURG"]
[null,"CL","01658","CA","Central Venous Catheters - Non-Cuffed","2016-06-01","2023-05-31","2 Years","All Years Exercised","80%-100%","Amarpreet Bambrah","MEDSURG"]
[null,"CL","01678","PL","Infusion Set, Integrated Automated Inserter & Transparent Film Dressing","2013-06-01","2022-11-30","1 Year + 1 Year","All Years Exercised an 2.5 Years Extension Exercised","100%","Amarpreet Bambrah","MEDSURG"]
[null,"CL","01806","CA","Drapes - Transparent & Incise","2016-12-01","2023-11-30","2 Years","All Years Exercised","80%-100%","Adrienne Alexander","OR/MDR"]
[null,"CL","01830","CA","Stockinette Casting, Cotton, Non-Sterile","2016-06-01","2023-05-31","2 Years","1.5 Years Exercised, 6 Months Available","80%-100%","Christina Singh","WCAHI"]
[null,"CL","01833","CA","Needles, Spinal & Epidural","2018-06-01","2025-05-31","2 Years + 3 Years","1 Year Exercised, 4 Years Remaining","80%-100%","Luna Attia","ARDI"]
[null,"CL","01834","CA","Endobronchial Tubes, Disposable","2016-06-01","2024-11-30","2 Years","All Years Exercised","80%-100%","Luna Attia","ARDI"]
[null,"CL","01835","CA","Anaesthesia Masks, Disposable","2016-06-01","2023-11-30","2 Years","1 Year Exercised","80%-100%","Luna Attia","ARDI"]
[null,"CL","01836","CA","Resuscitation Supplies & Accessories, Disposable","2016-06-01","2023-11-30","2 Years","1 Year Exercised","80%-100%","Luna Attia","ARDI"]
[null,"CL","01855","CA","Burn Gauze","2021-12-01","2029-05-31","2 Years","Available","80%-100%","Christina Singh","WCAHI"]
[null,"CL","01939","CA","Skin Integrity - Specialty - Zinc Barrier","2021-06-01","2029-05-31","2 Years","Available","80%-100%","Christina Singh","WCAHI"]
[null,"CL","01963","CA","Enteral Feed Delivery Systems","2019-06-01","2024-11-30","2 Years","Available","80%-100%","Amarpreet Bambrah","MEDSURG"]
[null,"CL","01965","CA","Chest Tubes","2020-12-01","2026-11-30","2 Years","Available","80%","Amarpreet Bambrah","MEDSURG"]
[null,"CL","01975","CA","Underpads-Breathable Low Air Loss Mattress Compatible & Disposable","2017-06-01","2022-11-30","2 Years","All Years Exercised","80%-100%","Amarpreet Bambrah","MEDSURG"]
[null,"CL","01976","CA","Intermediate Level Surface Disinfectants - Quaternary Ammonium Ready To Use","2017-06-01","2024-05-31","2 Years","All Years Exercised","80%-100%","Adrienne Alexander","OR/MDR"]
[null,"CL","01991","CA","Sterilization - Process Challenge Device & Biological Indicator =4 Hours","2016-12-01","2023-11-30","2 Years","All Years Exercised","80%-100%","Adrienne Alexander","OR/MDR"]
[null,"CL","02005","CA","AWC - Debriders - Polyacrylate With Ringers Solution","2016-06-01","2023-05-31","2 Years","All Years Exercised","80%-100%","Christina Singh","WCAHI"]
[null,"CL","02007","CA","Antimicrobial Silver Skin Fold Textile","2016-06-01","2023-05-31","2 Years","All Years Exercised","80%-100%","Christina Singh","WCAHI"]
[null,"CL","02017","CA","Sharps Containers, Reusable","2019-12-01","2024-11-30","2 Years","Available","80%-100%","Christina Singh","WCAHI"]
[null,"CL","02019","PL","Patient Turn & Position System","2016-06-01","2022-11-30","2 Years","1 Year and 6 Months Exercised. 6 Months Remaining","80%-100%","Amarpreet Bambrah","MEDSURG"]
[null,"CL","02216","CA","Casting - Undercast Padding - Non-Synthetic","2016-12-01","2023-05-31","2 Years","1.5 Years Exercised, 6 Months Available","80%-100%","Christina Singh","WCAHI"]
[null,"CL","02218","CA","Suture & Staple Removers","2016-12-01","2023-11-30","2 Years","All Years Exercised","80%-100%","Amarpreet Bambrah","MEDSURG"]
[null,"CL","02237","CA","Respiratory - Humidifiers & Large Volume Nebulizers - Empty And Prefilled","2017-12-01","2024-11-30","2 Years","All Years Exercised","80%-100%","Luna Attia","ARDI"]
[null,"CL","02240","CA","Intermediate Level Surface Disinfectants - Hydrogen Peroxide Enhanced Action Formula (Hp-Eaf) Ready To Use","2017-12-01","2024-05-31","2 Years","All Years Exercised","80%-100%","Christina Singh","WCAHI"]
[null,"CL","02258","CA","Respiratory - HCH, HME And Filters","2017-12-01","2023-11-30","2 Years","1 Year Exercised","80%-100%","Luna Attia","ARDI"]
[null,"CL","02260","CA","Respiratory - Heated Ventilation Circuits","2017-12-01","2024-11-30","2 Years","All Years Exercised","80%-100%","Luna Attia","ARDI"]
[null,"CL","02263","CA","ERCP: Sphincterotomes","2017-12-01","2024-11-30","2 Years","All Years Exercised","80%-100%","Adrienne Alexander","OR/MDR"]
[null,"CL","02264","CA","GI: Dilation - Non-Biliary - Balloons","2017-12-01","2024-11-30","2 Years","All Years Exercised","80%-100%","Adrienne Alexander","OR/MDR"]
[null,"CL","02265","CA","ERCP: Guidewires","2017-12-01","2024-11-30","2 Years","All Years Exercised","80%-100%","Adrienne Alexander","OR/MDR"]
[null,"CL","02266","CA","GI: Polypectomy Snares","2017-12-01","2024-11-30","2 Years","All Years Exercised","80%-100%","Adrienne Alexander","OR/MDR"]
[null,"CL","02267","CA","ERCP: Biliary Extraction Balloons & Baskets","2017-12-01","2024-11-30","2 Years","All Years Exercised","80%-100%","Adrienne Alexander","OR/MDR"]
[null,"CL","02268","CA","ERCP: Metal Stents - Biliary","2017-12-01","2024-11-30","2 Years","All Years Exercised","80%-100%","Adrienne Alexander","OR/MDR"]
[null,"CL","02269","CA","ERCP: Plastic Stents - Biliary","2017-12-01","2024-11-30","2 Years","All Years Exercised","80%-100%","Adrienne Alexander","OR/MDR"]
[null,"CL","02270","CA","GI: Metal Stents - Non-Biliary - Esophageal","2017-12-01","2024-11-30","2 Years","All Years Exercised","80%-100%","Adrienne Alexander","OR/MDR"]
[null,"CL","02271","CA","GI: Cytology Brush","2017-12-01","2024-11-30","2 Years","All Years Exercised","80%-100%","Adrienne Alexander","OR/MDR"]
[null,"CL","02272","CA","GI: Hemostasis Supplies (Ligation)","2017-12-01","2024-11-30","2 Years","All Years Exercised","80%-100%","Adrienne Alexander","OR/MDR"]
[null,"CL","02273","CA","GI: Hemostasis Supplies (Clips)","2017-12-01","2024-11-30","2 Years","All Years Exercised","80%-100%","Adrienne Alexander","OR/MDR"]
[null,"CL","02274","CA","GI: Hemostasis Supplies (Probes)","2017-12-01","2024-11-30","2 Years","All Years Exercised","80%-100%","Adrienne Alexander","OR/MDR"]
[null,"CL","02275","CA","GI: Hemostasis Supplies (Injection Needles)","2017-12-01","2024-11-30","2 Years","All Years Exercised","80%-100%","Adrienne Alexander","OR/MDR"]
[null,"CL","02276","CA","GI: Metal Stents - Non-Biliary - Duodenal/Pyloric","2017-12-01","2024-11-30","2 Years","All Years Exercised","80%-100%","Adrienne Alexander","OR/MDR"]
[null,"CL","02277","CA","GI: Metal Stent - Non-Biliary - Colonic","2017-12-01","2024-11-30","2 Years","All Years Exercised","80%-100%","Adrienne Alexander","OR/MDR"]
[null,"CL","02278","CA","ERCP: Cannula","2017-12-01","2024-11-30","2 Years","All Years Exercised","80%-100%","Adrienne Alexander","OR/MDR"]
[null,"CL","02281","CA","GI: Bite Blocks","2017-12-01","2024-11-30","2 Years","All Years Exercised","80%-100%","Adrienne Alexander","OR/MDR"]
[null,"CL","02282","CA","GI: Cleaning Brushes","2017-12-01","2024-11-30","2 Years","All Years Exercised","80%-100%","Adrienne Alexander","OR/MDR"]
[null,"CL","02283","CA","GI: Biopsy Forceps","2017-12-01","2024-11-30","2 Years","All Years Exercised","80%-100%","Adrienne Alexander","OR/MDR"]
[null,"CL","02285","CA","ERCP: Plastic Stents - Pancreatic","2017-12-01","2024-11-30","2 Years","All Years Exercised","80%-100%","Adrienne Alexander","OR/MDR"]
[null,"CL","02290","CA","Instruments, Surgical","2019-12-01","2026-05-31","2 Years","Available","80%-100%","Adrienne Alexander","OR/MDR"]
[null,"CL","02291","CA","Instruments, Utility","2019-12-01","2026-05-31","2 Years","Available","80%-100%","Adrienne Alexander","OR/MDR"]
[null,"CL","02318","CA","High Level Disinfectant - Hydrogen Peroxide Enhanced Action Formula (HP-EAF) Ready To Use","2017-06-01","2024-05-31","2 Years","All Years Exercised","80%-100%","Adrienne Alexander","OR/MDR"]
[null,"CL","02324","CA","High Level Disinfectant - OPA 14 Day Use","2017-06-01","2024-05-31","2 Years","All Years Exercised","80%-100%","Adrienne Alexander","OR/MDR"]
[null,"CL","02326","CA","High Level Disinfectant - Glutaraldehyde","2017-06-01","2024-05-31","2 Years","All Years Exercised","80%-100%","Adrienne Alexander","OR/MDR"]
[null,"CL","02341","CA","Respiratory - Medication Nebulizers","2017-12-01","2024-11-30","2 Years","All Years Exercised","80%-100%","Luna Attia","ARDI"]
[null,"CL","02344","CA","Respiratory - Incentive Spirometers","2017-12-01","2024-11-30","2 Years","All Years Exercised","80%-100%","Luna Attia","ARDI"]
[null,"CL","02393","CA","Masks, Surgical","2020-12-01","2026-11-30","2 Years","Available","80%","Amarpreet Bambrah","MEDSURG"]
[null,"CL","02394","CA","Masks, Procedural","2020-12-01","2026-11-30","2 Years","Available","80%","Amarpreet Bambrah","MEDSURG"]
[null,"CL","02396","CA","Respirators, N-Type","2020-12-01","2026-11-30","2 Years","Available","80%","Amarpreet Bambrah","MEDSURG"]
[null,"CL","02399","CA","Trays, Patient Care","2020-12-01","2026-11-30","1 Year + 2 Years","Available","80%","Amarpreet Bambrah","MEDSURG"]
[null,"CL","02400","CA","Trays, Procedural","2020-12-01","2026-11-30","1 Year + 2 Years","Available","80%","Amarpreet Bambrah","MEDSURG"]
[null,"CL","02412","CA","Basinless Bathing And Perineal Protection Wipes","2020-12-01","2026-11-30","2 Years","Available","80%","Amarpreet Bambrah","MEDSURG"]
[null,"CL","02413","CA","Oral Care Cleansing Products","2020-12-01","2026-11-30","2 Years","Available","80%","Amarpreet Bambrah","MEDSURG"]
[null,"CL","02420","CA","Urinary Catheters & Closed Catheter System, Indwelling (Without Silicone)","2018-06-01","2024-11-30","2 Years","1.5 Years Exercised","80%-100%","Amarpreet Bambrah","MEDSURG"]
[null,"CL","02421","CA","Urinary Catheters & Closed Catheter System, Indwelling (With Silicone)","2018-06-01","2024-11-30","2 Years","1.5 Years Exercised","80%-100%","Amarpreet Bambrah","MEDSURG"]
[null,"CL","02422","CA","Urinary Drainage Bags","2018-06-01","2024-11-30","2 Years","1.5 Years Exercised","80%-100%","Amarpreet Bambrah","MEDSURG"]
[null,"CL","02427","CA","Urinary Drainage Intermittent, External & Catheter Accessories","2018-06-01","2024-11-30","2 Years","1.5 Years Exercised","80%-100%","Amarpreet Bambrah","MEDSURG"]
[null,"CL","02428","CA","Stents, Ureteral","2020-06-01","2026-05-31","2 Years","Available","80%-100%","Adrienne Alexander","OR/MDR"]
[null,"CL","02430","CA","Guidewires, Urology","2020-06-01","2026-05-31","2 Years","Available","80%-100%","Adrienne Alexander","OR/MDR"]
[null,"CL","02431","CA","Access Sheaths, Ureteral Catheters, Dilators & Occlusion Balloons, Urology","2020-06-01","2026-05-31","2 Years","Available","80%-100%","Adrienne Alexander","OR/MDR"]
[null,"CL","02432","CA","Stone Retrieval Devices, Urology","2020-06-01","2026-05-31","2 Years","Available","80%-100%","Adrienne Alexander","OR/MDR"]
[null,"CL","02433","CA","Fistula Needles, Metal","2019-06-01","2022-11-30","2 Years","Available","80%-100%","Amarpreet Bambrah","MEDSURG"]
[null,"CL","02435","CA","Neonatal & Paediatric Piccs","2015-12-01","2022-11-30","2 Years","All Years Exercised","80%-100%","Amarpreet Bambrah","MEDSURG"]
[null,"CL","02449","CA","I.V. Solutions","2014-01-01","2023-11-30","3 Years","All 3 Years Exercised.","80%-100%","Amarpreet Bambrah","MEDSURG"]
[null,"CL","02450","CA","I.V. Gravity Sets","2014-01-01","2023-11-30","3 Years","All 3 Years Exercised.","80%-100%","Amarpreet Bambrah","MEDSURG"]
[null,"CL","02451","CA","I.V. Extension Sets & Accessories","2014-01-01","2023-11-30","3 Years","All 3 Years Exercised.","80%-100%","Amarpreet Bambrah","MEDSURG"]
[null,"CL","02452","CA","General I.V. Pump Sets (Pole Mounted Devices)","2014-01-01","2023-11-30","3 Years","All 3 Years Exercised.","80%-100%","Amarpreet Bambrah","MEDSURG"]
[null,"CL","02453","CA","Pain Management I.V. Pump Sets (Pole Mounted Devices)","2014-01-01","2023-11-30","3 Years","All 3 Years Exercised.","80%-100%","Amarpreet Bambrah","MEDSURG"]
[null,"CL","02455","CA","Irrigation Solution And Sets","2020-12-01","2026-11-30","1 Year + 2 Years","Available","80%","Amarpreet Bambrah","MEDSURG"]
[null,"CL","02458","CA","Manual Wheelchair","2013-12-01","2023-05-31","2 Years","All Years Exercised, plus 2.5 Year Extension","80%-100%","Christina Singh","WCAHI"]
[null,"CL","02634","CA","Surgical Antimicrobial Hand Scrub - Waterless/Brushless","2013-06-01","2023-05-31","2 Years + 1 Year + 1 Year + 1 Year","All Years Exercised","80%-100%","Christina Singh","WCAHI"]
[null,"CL","02635","CA","General Purpose Hand Soap & Hand Lotion","2013-07-01","2023-05-31","2 Years + 1 Year + 1 Year + 1 Year","All Years Exercised","80%-100%","Christina Singh","WCAHI"]
[null,"CL","02636","CA","Hand Sanitizer","2013-07-01","2023-05-31","2 Years + 1 Year + 1 Year + 1 Year","All Years Exercised","80%-100%","Christina Singh","WCAHI"]
[null,"CL","02637","CA","Antimicrobial Hand Soap","2013-07-01","2023-05-31","2 Years + 1 Year + 1 Year + 1 Year","All Years Exercised","80%-100%","Christina Singh","WCAHI"]
[null,"CL","02670","CA","Respiratory - Laryngoscopes & Blades","2017-12-01","2024-11-30","2 Years","All Years Exercised","80%-100%","Luna Attia","ARDI"]
[null,"CL","02678","CA","Oximetry, Pulse (OEM)","2020-12-01","2026-11-30","1 Year + 2 Years","Available","80%-100%","Amarpreet Bambrah","MEDSURG"]
[null,"CL","02679","CA","Sterilization Rolls & Pouches, Disposable","2013-12-01","2022-05-31","2 Years","All Years Exercised","80%-100%","Adrienne Alexander","OR/MDR"]
[null,"CL","02679","CA","Sterilization Rolls & Pouches, Disposable","2022-06-01","2028-05-31","2 Years","Available","80%-100%","Adrienne Alexander","OR/MDR"]
[null,"CL","02680","CA","Sterilization Wrappers, Disposable","2021-06-01","2028-05-31","2 Years","Available","80%-100%","Adrienne Alexander","OR/MDR"]
[null,"CL","02683","CA","Wound Evacuators","2020-12-01","2026-11-30","2 Years","Available","80%","Amarpreet Bambrah","MEDSURG"]
[null,"CL","02684","CA","Penrose Drains","2020-12-01","2026-11-30","2 Years","Available","80%","Amarpreet Bambrah","MEDSURG"]
[null,"CL","02685","CA","Intermittent Pneumatic Compression","2018-12-01","2025-11-30","2 Years","All Years Exercised","80%-100%","Amarpreet Bambrah","MEDSURG"]
[null,"CL","02710","CA","Lab Supplies, General","2015-12-01","2023-05-31","2 Years","All Years Exercised, plus 6 Month Extension","80%-100%","Christina Singh","WCAHI"]
[null,"CL","02711","CA","Embedding Rings & Cassettes ","2015-12-01","2023-05-31","2 Years","All Years Exercised, plus 6 Month Extension","80%-100%","Christina Singh","WCAHI"]
[null,"CL","02712","CA","Microscope Slides & Covers","2015-12-01","2023-05-31","2 Years","All Years Exercised, plus 6 Month Extension","80%-100%","Christina Singh","WCAHI"]
[null,"CL","02733","CA","Gloves - Surgical, Latex","2014-06-01","2024-05-31","3 Years","All Years Exercised","80%-100%","Amarpreet Bambrah","MEDSURG"]
[null,"CL","02734","CA","Gloves - Surgical, Polyisoprene","2014-06-01","2024-05-31","3 Years","All Years Exercised","80%-100%","Amarpreet Bambrah","MEDSURG"]
[null,"CL","02735","CA","Gloves - Surgical, Neoprene","2014-06-01","2024-05-31","3 Years","All Years Exercised","80%-100%","Amarpreet Bambrah","MEDSURG"]
[null,"CL","02736","PL","Glove Liners, Sterile","2014-06-01","2024-05-31","3 Years","All Years Exercised","80%-100%","Amarpreet Bambrah","MEDSURG"]
[null,"CL","02740","CA","Gloves - Examination Latex","2013-12-01","2024-05-31","3 Years","All Years Exercised","80%-100%","Amarpreet Bambrah","MEDSURG"]
[null,"CL","02741","CA","Gloves - Examination Vinyl","2013-12-01","2024-05-31","3 Years","All Years Exercised","80%-100%","Amarpreet Bambrah","MEDSURG"]
[null,"CL","02742","CA","Gloves - Examination Nitrile","2013-12-01","2024-05-31","3 Years","All Years Exercised","80%-100%","Amarpreet Bambrah","MEDSURG"]
[null,"CL","02744","CA","CO2 Monitoring (Capnography)","2021-12-01","2027-11-30","2 Years + 2 Years","Available","80%-100%","Luna Attia","ARDI"]
[null,"CL","02746","CA","Oximetry, Cerebral/Regional (OEM)","2020-12-01","2026-11-30","1 Year + 2 Years","Available","80%","Amarpreet Bambrah","MEDSURG"]
[null,"CL","02747","CA","Hemoglobin Monitoring, Non-Invasive","2020-12-01","2026-11-30","1 Year + 2 Years","Available","80%","Amarpreet Bambrah","MEDSURG"]
[null,"CL","02764","CA","Pads & Positioners","2019-06-01","2026-05-31","2 Years","Available","80%-100%","Adrienne Alexander","OR/MDR"]
[null,"CL","02769","CA","Biomedical Engineering Services","2013-11-01","2023-05-31","2 Years + 2 Years","All Years Exercised","100%","Christina Singh","WCAHI"]
[null,"CL","02815","CA","Sutures","2020-06-01","2026-05-31","2 Years","Available","80%-100%","Adrienne Alexander","OR/MDR"]
[null,"CL","02816","CA","Sutures, Antimicrobial","2020-06-01","2026-05-31","2 Years","Available","80%-100%","Adrienne Alexander","OR/MDR"]
[null,"CL","02817","CA","Sutures, Knotless","2020-06-01","2026-05-31","2 Years","Available","80%-100%","Adrienne Alexander","OR/MDR"]
[null,"CL","02818","CA","Pledgets","2020-06-01","2026-05-31","2 Years","Available","80%-100%","Adrienne Alexander","OR/MDR"]
[null,"CL","02819","CA","Sterile Umbilical Tape","2020-06-01","2026-05-31","2 Years","Available","80%-100%","Adrienne Alexander","OR/MDR"]
[null,"CL","02820","CA","Stainless Steel Suture/Wire","2020-06-01","2026-05-31","2 Years","Available","80%-100%","Adrienne Alexander","OR/MDR"]
[null,"CL","02822","CA","Eyed Needles","2020-06-01","2026-05-31","2 Years","Available","80%-100%","Adrienne Alexander","OR/MDR"]
[null,"CL","02823","CA","Skin Staplers","2020-06-01","2026-05-31","2 Years","Available","80%-100%","Adrienne Alexander","OR/MDR"]
[null,"CL","02824","CA","Topical Skin Adhesive","2020-06-01","2026-05-31","2 Years","Available","80%-100%","Adrienne Alexander","OR/MDR"]
[null,"CL","02825","CA","Abdominal Access Devices, Laparoscopic","2020-06-01","2026-05-31","2 Years","Available","80%-100%","Adrienne Alexander","OR/MDR"]
[null,"CL","02828","CA","Clip Appliers, Open","2020-06-01","2026-05-31","2 Years","Available","80%-100%","Adrienne Alexander","OR/MDR"]
[null,"CL","02829","CA","Clip Appliers, Laparoscopic","2020-06-01","2026-05-31","2 Years","Available","80%-100%","Adrienne Alexander","OR/MDR"]
[null,"CL","02830","CA","Hand Held Instruments, Laparoscopic","2020-06-01","2026-05-31","2 Years","Available","80%-100%","Adrienne Alexander","OR/MDR"]
[null,"CL","02831","CA","Specimen Retrieval Devices, Laparoscopic","2020-06-01","2026-05-31","2 Years","Available","80%-100%","Adrienne Alexander","OR/MDR"]
[null,"CL","02832","CA","Suction & Irrigation Devices, Laparoscopic","2020-06-01","2026-05-31","2 Years","Available","80%-100%","Adrienne Alexander","OR/MDR"]
[null,"CL","02833","CA","Suturing Devices, Laparoscopic","2020-06-01","2026-05-31","2 Years","Available","80%-100%","Adrienne Alexander","OR/MDR"]
[null,"CL","02834","CA","Ligating Devices, Laparoscopic","2020-06-01","2026-05-31","2 Years","Available","80%-100%","Adrienne Alexander","OR/MDR"]
[null,"CL","02835","CA","Cutters & Staplers, Open & Laparoscopic","2020-06-01","2026-05-31","2 Years","Available","80%-100%","Adrienne Alexander","OR/MDR"]
[null,"CL","02849","CA","CO2 Detector Colorimetrics","2021-12-01","2027-11-30","2 Years + 2 Years","Available","80%-100%","Luna Attia","ARDI"]
[null,"CL","02851","CA","Suction Tubing & Connectors, Disposable","2019-06-01","2024-11-30","2 Years","Available","80%-100%","Amarpreet Bambrah","MEDSURG"]
[null,"CL","02917","CA","Mortuary Bags, Shrouds And Kits","2021-06-01","2026-11-30","2 Years","2 Years Available","80%-100%","Amarpreet Bambrah","MEDSURG"]
[null,"CL","02920","CA","Thermometer, Probes And Probe Covers - Oral, Axillary, Rectal And Regional","2021-06-01","2026-11-30","2 Years","Available","80%-100%","Amarpreet Bambrah","MEDSURG"]
[null,"CL","02921","CA","Thermometer And Probe Covers - Tympanic","2021-06-01","2026-11-30","2 Years","Available","80%-100%","Adrienne Alexander","OR/MDR"]
[null,"CL","02922","CA","Thermometer, Non-Invasive - Temporal","2021-06-01","2026-11-30","2 Years","2 Years Available","80%-100%","Amarpreet Bambrah","MEDSURG"]
[null,"CL","02931","CA","Canes, Crutches, Walkers & Accessories","2014-06-01","2023-05-31","2 Years","All Years Exercised, plus 6 Month Extension","80%-100%","Christina Singh","WCAHI"]
[null,"CL","02932","CA","Pillows","2021-06-01","2026-11-30","2 Years","2 Years Available","80%-100%","Amarpreet Bambrah","MEDSURG"]
[null,"CL","02936","CA","Premoistened Surgical Skin Preparation","2014-06-01","2022-05-31","2 Years","All Years, plus 1 Extension Year Exercised","80%-100%","Adrienne Alexander","OR/MDR"]
[null,"CL","02945","CA","Preps, Swabs & Solutions - Iodine & Alcohol","2014-06-01","2022-05-31","2 Years","All Years, plus 1 Extension Year Exercised","80%-100%","Adrienne Alexander","OR/MDR"]
[null,"CL","02960","CA","Anesthesia CO2 Absorbents","2018-12-01","2023-11-30","2 Years","Available","80%-100%","Luna Attia","ARDI"]
[null,"CL","02965","CA","Vessel Sealing","2014-06-01","2024-05-31","3 Years","All Years Exercised","70%-100%","Adrienne Alexander","OR/MDR"]
[null,"CL","02966","CA","Ultrasonics","2014-06-01","2024-05-31","3 Years","All Years Exercised","70%-100%","Adrienne Alexander","OR/MDR"]
[null,"CL","02967","CA","Electrosurgery Accessories","2014-06-01","2024-05-31","3 Years","All Years Exercised","70%-100%","Adrienne Alexander","OR/MDR"]
[null,"CL","02968","CA","Smoke Evacuation","2014-06-01","2024-05-31","3 Years","All Years Exercised","70%-100%","Adrienne Alexander","OR/MDR"]
[null,"CL","02970","PL","Reusable Gel Patient Return Electrode Pad","2014-06-01","2024-05-31","3 Years","All Years Exercised","70%-100%","Adrienne Alexander","OR/MDR"]
[null,"CL","02974","CA","Airway Adjuncts","2021-12-01","2027-11-30","2 Years + 2 Years","Available","80%-100%","Luna Attia","ARDI"]
[null,"CL","02976","CA","Arterial Blood Gas Kits","2021-12-01","2027-11-30","2 Years + 2 Years","Available","80%-100%","Luna Attia","ARDI"]
[null,"CL","02977","CA","Temperature Management, Patient Warming Systems","2020-06-01","2026-05-31","2 Years","Available","80%-100%","Adrienne Alexander","OR/MDR"]
[null,"CL","02978","CA","Temperature Management, Blood, I.V. & Irrigation Fluid Warming , Closed System","2020-06-01","2026-05-31","2 Years","Available","80%-100%","Adrienne Alexander","OR/MDR"]
[null,"CL","03062","PL","Endovascular Grafts","2014-12-01","2022-05-31","2 Years + 2 Years","All Years, plus 6 Month Extension Exercised","80%-100%","Adrienne Alexander","OR/MDR"]
[null,"CL","03063","CA","Hemostats, Mechanical/Absorbable, Collagen Based","2020-06-01","2026-05-31","2 Years","Available","80%-100%","Adrienne Alexander","OR/MDR"]
[null,"CL","03064","CA","Hemostats, Mechanical/Absorbable, Polysaccharide Based","2020-06-01","2026-05-31","2 Years","Available","80%-100%","Adrienne Alexander","OR/MDR"]
[null,"CL","03065","CA","Hemostats, Mechanical/Absorbable, Gelatin Based","2020-06-01","2026-05-31","2 Years","Available","80%-100%","Adrienne Alexander","OR/MDR"]
[null,"CL","03066","CA","Hemostats, Mechanical/Absorbable, Oxidized Cellulose Based","2020-06-01","2026-05-31","2 Years","Available","80%-100%","Adrienne Alexander","OR/MDR"]
[null,"CL","03067","CA","Hemostats, Fibrin Sealant","2020-06-01","2026-05-31","2 Years","Available","80%-100%","Adrienne Alexander","OR/MDR"]
[null,"CL","03068","CA","Hemostats, Flowable","2020-06-01","2026-05-31","2 Years","Available","80%-100%","Adrienne Alexander","OR/MDR"]
[null,"CL","03069","CA","Sealants, Synthetic, Glutaraldehyde Based","2020-06-01","2026-05-31","2 Years","Available","80%-100%","Adrienne Alexander","OR/MDR"]
[null,"CL","03072","CA","Blood Pressure Cuffs","2021-12-01","2026-11-30","2 Years","2 Years Available","80%-100%","Amarpreet Bambrah","MEDSURG"]
[null,"CL","03079","CA","Orthopaedic Soft Goods","2014-12-01","2023-05-31","2 Years","All Years Exercised, plus 1.5 Year Extension","80%-100%","Christina Singh","WCAHI"]
[null,"CL","03080","CA","Orthopaedic - Specialty Post - OP Braces & Immobilizers","2014-12-01","2023-05-31","2 Years","All Years Exercised, plus 1.5 Year Extension","80%-100%","Christina Singh","WCAHI"]
[null,"CL","03082","CA","Rehabilitation Products - Occupational Therapy/Physiotherapy","2015-06-01","2024-05-31","2 Years","All Years Exercised","80%-100%","Christina Singh","WCAHI"]
[null,"CL","03083","CA","Personal Protective Gowns, Rated & Chemo","2021-12-01","2025-05-31","2 Years + 2 Years","Available","80%-100%","Christina Singh","WCAHI"]
[null,"CL","03088","CA","Stopcocks, High Pressure & Other","2014-12-01","2022-11-30","2 Years","All Years Exercised plus 1 Year Extension Exercised","80%-100%","Amarpreet Bambrah","MEDSURG"]
[null,"CL","03089","CA","Infant Diapers","2021-12-01","2026-11-30","2 Years","2 Years Available","80%-100%","Amarpreet Bambrah","MEDSURG"]
[null,"CL","03090","CA","Suction Canisters & Liners","2019-06-01","2024-11-30","2 Years","Available","80%-100%","Amarpreet Bambrah","MEDSURG"]
[null,"CL","03108","CA","Drainage Containers, Intermittent Negative Pressure","2020-12-01","2026-11-30","2 Years","Available","80%","Amarpreet Bambrah","MEDSURG"]
[null,"CL","03116","CA","Temperature Management, Patient Cooling Systems, Water System","2020-06-01","2026-05-31","2 Years","Available","80%-100%","Adrienne Alexander","OR/MDR"]
[null,"CL","03140","CA","Peripheral Intervention - Pta Balloons","2015-06-01","2023-11-30","2 Years + 2 Years + 2 Years","5.5 Years Exercised","70%-100%","Luna Attia","ARDI"]
[null,"CL","03141","CA","Peripheral Intervention - Balloon Expandable Stents","2015-06-01","2023-11-30","2 Years + 2 Years + 2 Years","5.5 Years Exercised","70%-100%","Luna Attia","ARDI"]
[null,"CL","03142","CA","Peripheral Intervention - Catheters","2015-06-01","2023-11-30","2 Years + 2 Years + 2 Years","5.5 Years Exercised","70%-100%","Luna Attia","ARDI"]
[null,"CL","03143","CA","Peripheral Intervention - Guidewires","2015-06-01","2023-11-30","2 Years + 2 Years + 2 Years","5.5 Years Exercised","70%-100%","Luna Attia","ARDI"]
[null,"CL","03144","CA","Peripheral Intervention - Embolization","2015-06-01","2023-11-30","2 Years + 2 Years + 2 Years","5.5 Years Exercised","70%-100%","Luna Attia","ARDI"]
[null,"CL","03149","CA","Hernia Mesh","2015-12-01","2024-11-30","2 Years + 2 Years + 2 Years","All Years Exercised","70%-100%","Adrienne Alexander","OR/MDR"]
[null,"CL","03163","CA","Midurethral Sling","2015-06-01","2024-05-31","2 Years + 2 Years + 2 Years","All Years Exercised","70%-100%","Adrienne Alexander","OR/MDR"]
[null,"CL","03179","CA","Peripheral Intervention - Ivc Filters","2015-06-01","2023-11-30","2 Years + 2 Years + 2 Years","5.5 Years Exercised","70%-100%","Luna Attia","ARDI"]
[null,"CL","03180","CA","Interventional Radiology - Drainage","2015-06-01","2023-11-30","2 Years + 2 Years + 2 Years","5.5 Years Exercised","70%-100%","Luna Attia","ARDI"]
[null,"CL","03181","CA","Interventional Radiology - Needles, Biopsy & Specialty","2015-06-01","2023-11-30","2 Years + 2 Years + 2 Years","5.5 Years Exercised","70%-100%","Luna Attia","ARDI"]
[null,"CL","03182","CA","Interventional Radiology - Lymphangiography & Sialography","2015-06-01","2023-11-30","2 Years + 2 Years + 2 Years","5.5 Years Exercised","70%-100%","Luna Attia","ARDI"]
[null,"CL","03183","CA","Interventional Radiology - Vertebroplasty","2015-06-01","2024-05-31","2 Years + 2 Years + 2 Years","All Years Exercised","70%-100%","Luna Attia","ARDI"]
[null,"CL","03184","CA","Interventional Radiology - Percutaneous Entry Sets","2015-06-01","2023-11-30","2 Years + 2 Years + 2 Years","3.5 Years Exercised","70%-100%","Luna Attia","ARDI"]
[null,"CL","03192","PL","Myringotomy Tubes","2015-12-01","2022-05-31","2 Years","1.5 Years Exercised","80%-100%","Adrienne Alexander","OR/MDR"]
[null,"CL","03214","CA","Ostomy Supplies","2015-12-01","2022-11-30","2 Years","All Years Exercised","70%-100%","Christina Singh","WCAHI"]
[null,"CL","03215","CA","Negative Pressure Wound Therapy, Reusable System (Gauze)","2015-12-01","2022-11-30","2 Years","All Years Exercised","70%-100%","Christina Singh","WCAHI"]
[null,"CL","03216","CA","Negative Pressure Wound Therapy, Reusable System (Foam)","2015-12-01","2022-11-30","2 Years","All Years Exercised","70%-100%","Christina Singh","WCAHI"]
[null,"CL","03218","CA","Peripherally Inserted Central Catheter (Picc)","2015-12-01","2022-11-30","2 Years","All Years Exercised","70%-100%","Amarpreet Bambrah","MEDSURG"]
[null,"CL","03219","CA","Implanted Vascular Access Device (Ivad)","2015-12-01","2022-11-30","2 Years","All Years Exercised","80%-100%","Amarpreet Bambrah","MEDSURG"]
[null,"CL","03220","CA","Non - Coring Needles","2015-12-01","2022-11-30","2 Years","All Years Exercised","80%-100%","Amarpreet Bambrah","MEDSURG"]
[null,"CL","03237","CA","I.D. Bands","2020-12-01","2026-11-30","1 Year + 2 Years","Available","80%","Amarpreet Bambrah","MEDSURG"]
[null,"CL","03250","CA","Peripheral Intervention - Dilators","2015-06-01","2023-11-30","2 Years + 2 Years + 2 Years","5.5 Years Exercised","70%-100%","Luna Attia","ARDI"]
[null,"CL","03251","CA","Peripheral Intervention - Fitting Adapters","2015-06-01","2023-11-30","2 Years + 2 Years + 2 Years","5.5 Years Exercised","70%-100%","Luna Attia","ARDI"]
[null,"CL","03252","CA","Peripheral Intervention - Micropuncture Kits","2015-06-01","2023-11-30","2 Years + 2 Years + 2 Years","5.5 Years Exercised","70%-100%","Luna Attia","ARDI"]
[null,"CL","03253","CA","Peripheral Intervention - Pressure Injector Tubing","2015-06-01","2023-11-30","2 Years + 2 Years + 2 Years","5.5 Years Exercised","70%-100%","Luna Attia","ARDI"]
[null,"CL","03254","CA","Peripheral Intervention - Vascular Snares & Forceps","2015-06-01","2023-11-30","2 Years + 2 Years + 2 Years","5.5 Years Exercised","70%-100%","Luna Attia","ARDI"]
[null,"CL","03263","CA","Incontinent Systems - Adult","2015-12-01","2022-11-30","2 Years","All Years Exercised","80%-100%","Amarpreet Bambrah","MEDSURG"]
[null,"CL","03272","CA","Underpads, Disposable","2015-12-01","2022-11-30","2 Years","All Years Exercised","80%-100%","Amarpreet Bambrah","MEDSURG"]
[null,"CL","03277","CA","General Purpose Lab Chemicals, >200L","2015-12-01","2023-05-31","2 Years","All Years Exercised plus 6 Month Extension","80%-100%","Christina Singh","WCAHI"]
[null,"CL","03289","CA","Low Pressure Irrigation Solution","2015-12-01","2025-05-31","2 Years","All Years Exercised plus 2.5 Years Extension","80%-100%","Christina Singh","WCAHI"]
[null,"CL","03323","CA","Peripheral Intervention - Embolectomy Catheters","2015-06-01","2023-11-30","2 Years + 2 Years + 2 Years","5.5 Years Exercised","70%-100%","Luna Attia","ARDI"]
[null,"CL","03522","CA","ECG Electrodes","2015-12-01","2024-11-30","2 Years + 2 Years","All Years Exercised","80%-100%","Amarpreet Bambrah","MEDSURG"]
[null,"CL","03523","CA","Defibrillator Pads - Multi-Function","2015-12-01","2024-11-30","2 Years + 2 Years","All Years Exercised","80%-100%","Amarpreet Bambrah","MEDSURG"]
[null,"CL","03525","CA","Chest Drainage System, Traditional","2020-12-01","2026-11-30","2 Years","Available","80%","Amarpreet Bambrah","MEDSURG"]
[null,"CL","03527","PL","Medical Surface Repair Patch","2014-10-01","2022-11-30","2 Years","All Years Exercised. Additional 1 Year Extension Exercised.","80%-100%","Amarpreet Bambrah","MEDSURG"]
[null,"CL","03535","CA","Peripheral Intervention – Introducer Sheaths","2015-06-01","2023-11-30","2 Years + 2 Years + 2 Years","5.5 Years Exercised","70%-100%","Luna Attia","ARDI"]
[null,"CL","03536","CA","Peripheral Intervention – Angiographic Needles","2015-06-01","2023-11-30","2 Years + 2 Years + 2 Years","5.5 Years Exercised","70%-100%","Luna Attia","ARDI"]
[null,"CL","03537","CA","Peripheral Intervention – Compression Device","2015-06-01","2023-11-30","2 Years + 2 Years + 2 Years","5.5 Years Exercised","70%-100%","Luna Attia","ARDI"]
[null,"CL","03538","CA","Peripheral Intervention – Inflation Device","2015-06-01","2023-11-30","2 Years + 2 Years + 2 Years","5.5 Years Exercised","70%-100%","Luna Attia","ARDI"]
[null,"CL","03558","CA","Peripheral Intervention - Self - Expanding Stents","2015-06-01","2023-11-30","2 Years + 2 Years + 2 Years","5.5 Years Exercised","70%-100%","Luna Attia","ARDI"]
[null,"CL","03569","PL","Temporary Pacing Catheters - Kits","2016-06-01","2022-11-30","2 Years","1.5 Years Exercised, 6 Months Available","80%-100%","Amarpreet Bambrah","MEDSURG"]
[null,"CL","03574","CA","Chest Drainage System - Digital","2020-12-01","2026-11-30","2 Years","Available","80%","Amarpreet Bambrah","MEDSURG"]
[null,"CL","03595","CA","Negative Pressure Wound Therapy, Disposable System","2015-12-01","2022-11-30","2 Years","All Years Exercised","70%-100%","Christina Singh","WCAHI"]
[null,"CL","03620","CA","AWC - Impregnated Gauze - Petrolatum Oil Emulsion","2016-06-01","2023-05-31","2 Years","All Years Exercised","80%-100%","Christina Singh","WCAHI"]
[null,"CL","03622","CA","AWC - Transparent Absorbent Acrylic Adhesive Dressing","2016-06-01","2023-05-31","2 Years","All Years Exercised","80%-100%","Christina Singh","WCAHI"]
[null,"CL","03632","CA","AWC - Odour Absorbents","2016-06-01","2023-05-31","2 Years","All Years Exercised","80%-100%","Christina Singh","WCAHI"]
[null,"CL","03633","CA","AWC - Hydrogels Products","2016-06-01","2023-05-31","2 Years","All Years Exercised","80%-100%","Christina Singh","WCAHI"]
[null,"CL","03635","CA","Laryngeal Masks & Accessories","2016-06-01","2024-11-30","2 Years","All Years Exercised","80%-100%","Luna Attia","ARDI"]
[null,"CL","03636","CA","Anaesthesia Masks, Reusable","2016-06-01","2023-11-30","2 Years","1 Year Exercised","80%-100%","Luna Attia","ARDI"]
[null,"CL","03637","CA","Endotracheal Tubes, Disposable","2016-06-01","2024-11-30","2 Years","All Years Exercised","80%-100%","Luna Attia","ARDI"]
[null,"CL","03652","CA","AWC - Gelling Fiber & Antimicrobial Silver Gelling Fiber Dressings","2016-06-01","2023-05-31","2 Years","All Years Exercised","80%-100%","Christina Singh","WCAHI"]
[null,"CL","03653","CA","AWC - Alginate & Antimicrobial Silver Alginate Dressings","2016-06-01","2023-05-31","2 Years","All Years Exercised","80%-100%","Christina Singh","WCAHI"]
[null,"CL","03654","CA","Hydrocolloid Dressings","2021-06-01","2029-05-31","2 Years","Available","80%-100%","Christina Singh","WCAHI"]
[null,"CL","03659","CA","AWC - Antimicrobial Gauze Products","2016-06-01","2023-05-31","2 Years","All Years Exercised","80%-100%","Christina Singh","WCAHI"]
[null,"CL","03660","CA","AWC - Transfer Layers","2016-06-01","2023-05-31","2 Years","All Years Exercised","80%-100%","Christina Singh","WCAHI"]
[null,"CL","03661","CA","AWC - Antimicrobial Silver Transfer Layers","2016-06-01","2023-05-31","2 Years","All Years Exercised","80%-100%","Christina Singh","WCAHI"]
[null,"CL","03666","CA","Suction Catheters & Tips, Disposable","2019-06-01","2024-11-30","2 Years","Available","80%-100%","Amarpreet Bambrah","MEDSURG"]
[null,"CL","03667","CA","Suction System Closed, Disposable","2016-06-01","2024-11-30","2 Years","All Years Exercised","80%-100%","Luna Attia","ARDI"]
[null,"CL","03669","CA","Sterilization Assurance Testing & Record Keeping","2016-12-01","2023-11-30","2 Years","All Years Exercised","80%-100%","Adrienne Alexander","OR/MDR"]
[null,"CL","03671","CA","AWC - Antimicrobial Silver Mesh","2016-06-01","2023-05-31","2 Years","All Years Exercised","80%-100%","Christina Singh","WCAHI"]
[null,"CL","03672","PL","Hemodialysis Catheters - Non-Cuffed","2016-06-01","2022-11-30","2 Years","1.5 Years Exercised, 6 Months Available","80%-100%","Amarpreet Bambrah","MEDSURG"]
[null,"CL","03675","PL","Hemodialysis Catheters - Chronic","2016-06-01","2022-11-30","2 Years","1.5 Years Exercised, 6 Months Available","80%-100%","Amarpreet Bambrah","MEDSURG"]
[null,"CL","03684","CA","AWC - Antimicrobial Gentian Violet & Methylene Blue Dressings","2015-06-01","2023-05-31","2 Years","All Years Exercised","80%-100%","Christina Singh","WCAHI"]
[null,"CL","03685","CA","AWC - Polymeric Membrane Dressings","2015-06-01","2023-05-31","2 Years","All Years Exercised","80%-100%","Christina Singh","WCAHI"]
[null,"CL","03687","CA","AWC - Wound Cleanser Antimicrobial","2015-06-01","2023-05-31","2 Years","All Years Exercised","80%-100%","Christina Singh","WCAHI"]
[null,"CL","03689","CA","AWC - Antimicrobial Silver Contact Layers","2016-06-01","2023-05-31","2 Years","All Years Exercised","80%-100%","Christina Singh","WCAHI"]
[null,"CL","03690","CA","AWC - Hydrophyllic Wound Paste","2016-06-01","2023-05-31","2 Years","All Years Exercised","80%-100%","Christina Singh","WCAHI"]
[null,"CL","03694","CA","AWC - Compression Wrap - Short Stretch Multi-Layer","2016-06-01","2023-05-31","2 Years","All Years Exercised","80%-100%","Christina Singh","WCAHI"]
[null,"CL","03695","CA","AWC - Compression Wrap - Short Stretch Single Layer","2016-06-01","2023-05-31","2 Years","All Years Exercised","80%-100%","Christina Singh","WCAHI"]
[null,"CL","03696","CA","AWC - Compression Wrap - Long Stretch Reusable","2016-06-01","2023-05-31","2 Years","All Years Exercised","80%-100%","Christina Singh","WCAHI"]
[null,"CL","03697","CA","AWC - Compression Wrap - Long Stretch, Disposable","2016-06-01","2023-05-31","2 Years","All Years Exercised","80%-100%","Christina Singh","WCAHI"]
[null,"CL","03698","CA","Skin Integrity System - Cleansers, Moisturizers, Barriers","2016-06-01","2023-05-31","2 Years","All Years Exercised","80%-100%","Christina Singh","WCAHI"]
[null,"CL","03701","CA","Foam Dressings Non-Silicone","2021-06-01","2029-05-31","2 Years","Available","80%-100%","Christina Singh","WCAHI"]
[null,"CL","03723","CA","AWC - Hydroconductive Dressings","2015-06-01","2023-05-31","2 Years","All Years Exercised","80%-100%","Christina Singh","WCAHI"]
[null,"CL","03724","CA","AWC - Contact Layer – Lipid-Colloid Matrix","2015-06-01","2023-05-31","2 Years","All Years Exercised","80%-100%","Christina Singh","WCAHI"]
[null,"CL","03727","CA","Resuscitation Supplies & Accessories Reusable","2016-06-01","2023-11-30","2 Years","1 Year Exercised","80%-100%","Luna Attia","ARDI"]
[null,"CL","03729","CA","Tracheostomy Products","2016-06-01","2024-11-30","2 Years","All Years Exercised","80%-100%","Luna Attia","ARDI"]
[null,"CL","03730","CA","O.R. Surgical Scrub Brushes","2016-06-01","2023-05-31","2 Years","All Years Exercised","80%-100%","Adrienne Alexander","OR/MDR"]
[null,"CL","03731","CA","Stockinettes O.R. - Sterile","2016-06-01","2023-05-31","2 Years","All Years Exercised","80%-100%","Adrienne Alexander","OR/MDR"]
[null,"CL","03735","CA","Endobronchial Blockers","2016-06-01","2024-11-30","2 Years","All Years Exercised","80%-100%","Luna Attia","ARDI"]
[null,"CL","03738","CA","Surgical Clippers","2022-06-01","2028-05-31","2 Years","Available","80%-100%","Adrienne Alexander","OR/MDR"]
[null,"CL","03740","CA","Needle Counters","2022-06-01","2028-05-31","2 Years","Available","80%-100%","Adrienne Alexander","OR/MDR"]
[null,"CL","03744","CA","Continuous Diffusion Oxygen Therapy","2021-06-01","2029-05-31","2 Years","Available","80%-100%","Christina Singh","WCAHI"]
[null,"CL","03746","PL","Myringotomy Blades","2015-12-01","2022-05-31","2 Years","All Years Exercised","80%-100%","Adrienne Alexander","OR/MDR"]
[null,"CL","03763","CA","General Purpose Lab Chemicals, <200L","2015-12-01","2023-05-31","2 Years","All Years Exercised","80%-100%","Christina Singh","WCAHI"]
[null,"CL","03773","CA","Percutaneous Tracheostomy Kits","2016-06-01","2024-11-30","2 Years","All Years Exercised","80%-100%","Luna Attia","ARDI"]
[null,"CL","03838","CA","Spinal & Epidural Trays - Wet","2015-12-01","2025-11-30","2.5 + 2 Years","All Years plus 6 Months Exercised","80%-100%","Luna Attia","ARDI"]
[null,"CL","03842","CA","Medical Device Reprocessing Decontamination Products","2017-06-01","2024-05-31","2 Years","All Years Exercised","100%","Adrienne Alexander","OR/MDR"]
[null,"CL","03843","CA","High Level Surface Disinfectant - Sodium Hypochlorite - Bleach Wipes","2017-06-01","2024-05-31","2 Years","All Years Exercised","80%-100%","Christina Singh","WCAHI"]
[null,"CL","03895","CA","AWC - Wound Depth Measurement Tool","2016-12-01","2023-05-31","2 Years","All Years Exercised","80%-100%","Christina Singh","WCAHI"]
[null,"CL","03900","CA","Skin Closure Strips","2021-12-01","2029-05-31","2 Years","Available","80%-100%","Christina Singh","WCAHI"]
[null,"CL","03901","CA","Transparent Film Dressings","2016-12-01","2023-05-31","2 Years","Available","80%-100%","Christina Singh","WCAHI"]
[null,"CL","03906","CA","Casting & Splinting Products - Plaster Of Paris","2016-12-01","2023-05-31","2 Years","1.5 Years Exercised, 6 Months Available","80%-100%","Christina Singh","WCAHI"]
[null,"CL","03907","CA","Casting - Accessories","2016-12-01","2023-05-31","2 Years","1.5 Years Exercised, 6 Months Available","80%-100%","Christina Singh","WCAHI"]
[null,"CL","03908","CA","Casting & Splinting Products - Synthetic","2016-12-01","2023-05-31","2 Years","1.5 Years Exercised, 6 Months Available","80%-100%","Christina Singh","WCAHI"]
[null,"CL","03910","CA","Therapeutic Support Surfaces & Associated Bed Frame Rentals","2016-12-01","2025-05-31","2 Years + 1 Year + 1 Year + 1 Year","3.5 Years Exercised, 1.5 Years Available","80%-100%","Christina Singh","WCAHI"]
[null,"CL","03917","CA","Casting - Removal Supplies & Accessories","2021-10-01","2031-05-31","1 Year","Available","80%-100%","Christina Singh","WCAHI"]
[null,"CL","03918","CA","Dental Supplies","2016-12-01","2023-05-31","2 Years","Available","80%-100%","Christina Singh","WCAHI"]
[null,"CL","03921","CA","Esmark Bandages","2016-12-01","2023-11-30","2 Years","All Years Exercised","80%-100%","Adrienne Alexander","OR/MDR"]
[null,"CL","03923","CA","Surgical Sponges","2016-12-01","2023-11-30","2 Years","All Years Exercised","80%-100%","Adrienne Alexander","OR/MDR"]
[null,"CL","03924","CA","Dressings & Packing","2016-12-01","2023-05-31","2 Years","1.5 Years Exercised, 6 Months Available","80%-100%","Christina Singh","WCAHI"]
[null,"CL","03925","CA","Self-Adherent Wraps","2021-12-01","2029-05-31","2 Years","Available","80%-100%","Christina Singh","WCAHI"]
[null,"CL","03926","CA","Bandages, Non-Tubular","2021-12-01","2026-11-30","2 Years","2 Years Available","80%-100%","Amarpreet Bambrah","MEDSURG"]
[null,"CL","03927","CA","Spinal Trays - Dry","2016-12-01","2025-11-30","2.5 Years + 2 Years","All Years plus 6 Months Exercised","80%-100%","Luna Attia","ARDI"]
[null,"CL","03931","CA","Tubular Dressing Securement","2016-06-01","2024-05-31","2 Years","Available","80%-100%","Amarpreet Bambrah","MEDSURG"]
[null,"CL","03932","CA","Stockinette Casting - Synthetic, Non-Sterile","2016-06-01","2023-05-31","2 Years","All Years Exercised","80%-100%","Christina Singh","WCAHI"]
[null,"CL","03952","PL","Temporary Pacing Catheters - Catheters Only","2016-06-01","2022-11-30","2 Years","1.5 Years Exercised, 6 Months Available","80%-100%","Amarpreet Bambrah","MEDSURG"]
[null,"CL","03957","CA","Sterilization - Process Challenge Device & Biological Indicator >4 Hours, Steam & Ethylene Oxide","2016-12-01","2023-11-30","2 Years","All Years Exercised","80%-100%","Adrienne Alexander","OR/MDR"]
[null,"CL","04004","CA","Casting - Total Contact Cast","2016-12-01","2023-05-31","2 Years","1.5 Years Exercised, 6 Months Available","80%-100%","Christina Singh","WCAHI"]
[null,"CL","04066","PL","Body Fluid Solidification Systems","2016-12-01","2022-11-30","2 Years","1 Year Exercised","80%-100%","Amarpreet Bambrah","MEDSURG"]
[null,"CL","04081","CA","Casting - Undercast Padding - Synthetic","2016-12-01","2023-05-31","2 Years","1.5 Years Exercised, 6 Months Available","80%-100%","Christina Singh","WCAHI"]
[null,"CL","04097","CA","Radiofrequency Ablation Devices & Disposables, Abdominal (OEM)","2017-06-01","2023-11-30","2 Years","1.5 Years Exercised","100%","Luna Attia","ARDI"]
[null,"CL","04098","CA","Microwave Ablation Devices & Disposables (OEM)","2017-06-01","2022-05-31","2 Years","Available","100%","Luna Attia","ARDI"]
[null,"CL","04100","CA","Holmium Laser Fibres - Single Use","2021-12-01","2027-11-30","2 Years","Available","80%-100%","Luna Attia","ARDI"]
[null,"CL","04202","PL","Topical Skin Prep In Sterile Applicator","2016-09-01","2022-05-31","2 Years","All Years, plus 1 Extension Year Exercised.","80%-100%","Adrienne Alexander","OR/MDR"]
[null,"CL","04217","CA","Respiratory - Valved Holding Chambers - Multi-Patient Use","2017-12-01","2024-11-30","2 Years","All Years Exercised","80%-100%","Luna Attia","ARDI"]
[null,"CL","04218","CA","Respiratory - Valved Holding Chambers - Single Patient Use","2017-12-01","2024-11-30","2 Years","All Years Exercised","80%-100%","Luna Attia","ARDI"]
[null,"CL","04219","CA","Respiratory - Non-Heated Ventilation, Anaesthesia Circuits & Breathing Bags","2017-12-01","2024-11-30","2 Years","All Years Exercised","80%-100%","Luna Attia","ARDI"]
[null,"CL","04241","CA","Catheter Stabilization - Sutureless - Vascular","2017-12-01","2024-11-30","2 Years","All Years Exercised","80%-100%","Amarpreet Bambrah","MEDSURG"]
[null,"CL","04244","CA","ERCP: Locking Devices","2017-12-01","2024-11-30","2 Years","All Years Exercised","80%-100%","Adrienne Alexander","OR/MDR"]
[null,"CL","04245","CA","ERCP: Biliary Dilation - Balloons & Catheters","2017-12-01","2024-11-30","2 Years","All Years Exercised","80%-100%","Adrienne Alexander","OR/MDR"]
[null,"CL","04246","CA","ERCP: Biliary Cytology Brush","2017-12-01","2024-11-30","2 Years","All Years Exercised","80%-100%","Adrienne Alexander","OR/MDR"]
[null,"CL","04247","CA","Catheter Stabilization - Sutureless - Non-Vascular","2017-12-01","2024-11-30","2 Years","All Years Exercised","80%-100%","Amarpreet Bambrah","MEDSURG"]
[null,"CL","04248","CA","GI: Endoscopic Marker","2017-12-01","2024-11-30","2 Years","All Years Exercised","80%-100%","Adrienne Alexander","OR/MDR"]
[null,"CL","04249","CA","GI: Overtubes","2017-12-01","2024-11-30","2 Years","All Years Exercised","80%-100%","Adrienne Alexander","OR/MDR"]
[null,"CL","04250","CA","GI: Inflation Device","2017-12-01","2024-11-30","2 Years","All Years Exercised","80%-100%","Adrienne Alexander","OR/MDR"]
[null,"CL","04251","CA","GI: Hemostasis Supplies (Graspers)","2017-12-01","2024-11-30","2 Years","All Years Exercised","80%-100%","Adrienne Alexander","OR/MDR"]
[null,"CL","04252","CA","GI: Hemostasis Supplies (Hemostasis Spray)","2017-12-01","2024-11-30","2 Years","All Years Exercised","80%-100%","Adrienne Alexander","OR/MDR"]
[null,"CL","04253","CA","GI: Hemostasis Supplies (Detachable Ligating Loops)","2017-12-01","2024-11-30","2 Years","All Years Exercised","80%-100%","Adrienne Alexander","OR/MDR"]
[null,"CL","04257","CA","GI: Endoscope Valves & Buttons - Disposable","2017-12-01","2024-11-30","2 Years","All Years Exercised","80%-100%","Adrienne Alexander","OR/MDR"]
[null,"CL","04258","CA","GI: Endoscope Irrigation Pump Accessories - Disposable","2017-12-01","2024-11-30","2 Years","All Years Exercised","80%-100%","Adrienne Alexander","OR/MDR"]
[null,"CL","04259","CA","GI: Polyp Traps","2017-12-01","2024-11-30","2 Years","All Years Exercised","80%-100%","Adrienne Alexander","OR/MDR"]
[null,"CL","04260","CA","GI: Bedside Cleaning Kit","2017-12-01","2024-11-30","2 Years","All Years Exercised","80%-100%","Adrienne Alexander","OR/MDR"]
[null,"CL","04261","CA","GI: Endoscope Transport Bag","2017-12-01","2024-11-30","2 Years","All Years Exercised","80%-100%","Adrienne Alexander","OR/MDR"]
[null,"CL","04262","CA","GI: Endoscope Tip Protectors","2017-12-01","2024-11-30","2 Years","All Years Exercised","80%-100%","Adrienne Alexander","OR/MDR"]
[null,"CL","04263","CA","GI: Endoscopic Mucosal Resection","2017-12-01","2024-11-30","2 Years","All Years Exercised","80%-100%","Adrienne Alexander","OR/MDR"]
[null,"CL","04264","CA","GI: Eus Fna Needles","2017-12-01","2024-11-30","2 Years","All Years Exercised","80%-100%","Adrienne Alexander","OR/MDR"]
[null,"CL","04265","CA","GI: Eus Fnb Needles","2017-12-01","2024-11-30","2 Years","All Years Exercised","80%-100%","Adrienne Alexander","OR/MDR"]
[null,"CL","04266","CA","GI: Eus Specialty Needles","2017-12-01","2024-11-30","2 Years","All Years Exercised","80%-100%","Adrienne Alexander","OR/MDR"]
[null,"CL","04267","CA","GI: Ebus Fna Needles","2017-12-01","2024-11-30","2 Years","All Years Exercised","80%-100%","Adrienne Alexander","OR/MDR"]
[null,"CL","04268","CA","GI: Ebus Fnb Needles","2017-12-01","2024-11-30","2 Years","All Years Exercised","80%-100%","Adrienne Alexander","OR/MDR"]
[null,"CL","04275","CA","GI: Colon Decompression","2017-12-01","2024-11-30","2 Years","All Years Exercised","80%-100%","Adrienne Alexander","OR/MDR"]
[null,"CL","04289","PL","Arterial Catheters","2016-12-01","2023-11-30","2 Years","All Years Exercised","80%-100%","Amarpreet Bambrah","MEDSURG"]
[null,"CL","04290","CA","GI: Bronchial Stents","2017-12-01","2024-11-30","2 Years","All Years Exercised","80%-100%","Adrienne Alexander","OR/MDR"]
[null,"CL","04291","CA","GI: Retrieval Nets","2017-12-01","2024-11-30","2 Years","All Years Exercised","80%-100%","Adrienne Alexander","OR/MDR"]
[null,"CL","04292","CA","GI: Retrieval Baskets","2017-12-01","2024-11-30","2 Years","All Years Exercised","80%-100%","Adrienne Alexander","OR/MDR"]
[null,"CL","04293","CA","GI: Retrieval Forceps","2017-12-01","2024-11-30","2 Years","All Years Exercised","80%-100%","Adrienne Alexander","OR/MDR"]
[null,"CL","04294","CA","GI: Retrieval Graspers","2017-12-01","2024-11-30","2 Years","All Years Exercised","80%-100%","Adrienne Alexander","OR/MDR"]
[null,"CL","04295","CA","Blood Collection, Lancets, Safety Heel","2018-06-01","2025-05-31","2 Years + 3 Years","2 Years Exercised","80%-100%","Amarpreet Bambrah","MEDSURG"]
[null,"CL","04296","CA","Blood Collection, Tubes","2018-06-01","2025-05-31","2 Years + 3 Years","2 Years Exercised","80%-100%","Amarpreet Bambrah","MEDSURG"]
[null,"CL","04297","CA","Blood Collection, Lancets, Safety","2018-06-01","2025-05-31","2 Years + 3 Years","2 Years Exercised","80%-100%","Amarpreet Bambrah","MEDSURG"]
[null,"CL","04298","CA","Blood Collection, Non-Safety","2018-06-01","2025-05-31","2 Years + 3 Years","2 Years Exercised","80%-100%","Amarpreet Bambrah","MEDSURG"]
[null,"CL","04299","CA","Blood Collection, Safety","2018-06-01","2025-05-31","2 Years + 3 Years","2 Years Exercised","80%-100%","Amarpreet Bambrah","MEDSURG"]
[null,"CL","04300","CA","I.V. Catheters, Non-Safety","2018-06-01","2025-05-31","2 Years + 3 Years","2 Years Exercised","80%-100%","Amarpreet Bambrah","MEDSURG"]
[null,"CL","04301","CA","I.V. Catheters, Safety","2018-06-01","2025-05-31","2 Years + 3 Years","2 Years Exercised","80%-100%","Amarpreet Bambrah","MEDSURG"]
[null,"CL","04302","CA","Syringes","2018-06-01","2025-05-31","2 Years + 3 Years","2 Years Exercised","80%-100%","Amarpreet Bambrah","MEDSURG"]
[null,"CL","04303","CA","Needles & Needle/Syringe Combinations, Safety - Active","2018-06-01","2025-05-31","2 Years + 3 Years","2 Years Exercised","80%-100%","Amarpreet Bambrah","MEDSURG"]
[null,"CL","04306","CA","Needles & Needle/Syringe Combinations, Safety - Passive","2018-06-01","2025-05-31","2 Years + 3 Years","2 Years Exercised","80%-100%","Amarpreet Bambrah","MEDSURG"]
[null,"CL","04313","CA","Sterilization - Process Challenge Device & Biological Indicator >4 Hours, Hydrogen Peroxide","2016-12-01","2023-11-30","2 Years","All Years Exercised","80%-100%","Adrienne Alexander","OR/MDR"]
[null,"CL","04327","CA","Epidural Trays - Dry","2016-12-01","2025-11-30","2.5 + 2 Years","All Years plus 6 Months Exercised","80%-100%","Luna Attia","ARDI"]
[null,"CL","04338","CA","Anti-Embolism Stockings","2018-12-01","2025-11-30","2 Years","All Years Exercised","80%-100%","Amarpreet Bambrah","MEDSURG"]
[null,"CL","04381","CA","Contrast Media - Power Syringe & Accessory (OEM)","2016-12-01","2023-11-30","2 Years","All Years Exercised","80%-100%","Luna Attia","ARDI"]
[null,"CL","04433","CA","High Level Disinfectant - OPA 28 Day Use","2017-06-01","2024-05-31","2 Years","All Years Exercised","80%-100%","Adrienne Alexander","OR/MDR"]
[null,"CL","04436","CA","Respiratory - Pulmonary Function Filters And Accessories","2017-12-01","2023-11-30","2 Years","1 Year Exercised","80%-100%","Luna Attia","ARDI"]
[null,"CL","04437","CA","Respiratory - Solutions For Inhalation - Bags & Bottles","2017-12-01","2023-11-30","2 Years","1 Year Exercised, 1 Year Remaining","80%-100%","Luna Attia","ARDI"]
[null,"CL","04438","CA","Respiratory - Solutions For Tracheal Suctioning - Vials & Ampules","2017-12-01","2024-11-30","2 Years","All Years Exercised","80%-100%","Luna Attia","ARDI"]
[null,"CL","04440","CA","Respiratory - Oxygen Delivery Standard Masks, Nasal Cannulas And Connective Tubing","2017-12-01","2023-11-30","2 Years","1 Year Exercised","80%-100%","Luna Attia","ARDI"]
[null,"CL","04441","CA","Respiratory - Endotracheal Tube Securement Devices - Fixed Repositional","2017-12-01","2024-11-30","2 Years","All Years Exercised","80%-100%","Luna Attia","ARDI"]
[null,"CL","04443","CA","Respiratory - Micro-Pump Vibrating Mesh Nebulizer","2017-12-01","2024-11-30","2 Years","All Years Exercised","80%-100%","Luna Attia","ARDI"]
[null,"CL","04444","CA","Respiratory - Transport Ventilator Circuits","2017-12-01","2023-11-30","2 Years","1 Year Exercised","80%-100%","Luna Attia","ARDI"]
[null,"CL","04445","CA","Respiratory - Non-Invasive Mechanical Ventilation Interfaces, Regular Pressure - Neonate & Infant","2017-12-01","2024-11-30","2 Years","All Years Exercised","80%-100%","Luna Attia","ARDI"]
[null,"CL","04446","CA","Respiratory - Non-Invasive Mechanical Ventilation Interfaces - Adult/Paediatric","2017-12-01","2024-11-30","2 Years","All Years Exercised","80%-100%","Luna Attia","ARDI"]
[null,"CL","04474","CA","Syringes, Oral","2018-06-01","2025-05-31","2 Years + 3 Years","2 Years Exercised","80%-100%","Amarpreet Bambrah","MEDSURG"]
[null,"CL","04475","CA","Needles & Needles/Syringe Combinations, Non-Safety","2018-06-01","2025-05-31","2 Years + 3 Years","2 Years Exercised","80%-100%","Amarpreet Bambrah","MEDSURG"]
[null,"CL","04494","CA","Blood Collection, Accessories - Tourniquets","2018-06-01","2025-05-31","2 Years + 3 Years","2 Years Exercised","80%-100%","Amarpreet Bambrah","MEDSURG"]
[null,"CL","04496","CA","Respiratory - Endotracheal Tube Securement Devices - Non-Fixed Repositional","2017-12-01","2024-11-30","2 Years","All Years Exercised","80%-100%","Luna Attia","ARDI"]
[null,"CL","04500","CA","Surgical Custom & Standard Packs, Drapes & Gowns","2019-06-01","2026-05-31","3 Years","Available","80%-100%","Adrienne Alexander","OR/MDR"]
[null,"CL","04553","CA","Blood Collection, Accessories - Tube Holders","2018-06-01","2025-05-31","2 Years + 3 Years","2 Years Exercised","80%-100%","Amarpreet Bambrah","MEDSURG"]
[null,"CL","04611","CA","Stomach Tubes","2019-06-01","2024-11-30","2 Years","Available","80%-100%","Amarpreet Bambrah","MEDSURG"]
[null,"CL","04614","CA","Enteral Feeding Supplies","2019-06-01","2024-11-30","2 Years","Available","80%-100%","Amarpreet Bambrah","MEDSURG"]
[null,"CL","04616","CA","Equipment, Sterile Drape Cover","2020-06-01","2026-05-31","2 Years","Available","80%-100%","Adrienne Alexander","OR/MDR"]
[null,"CL","04619","CA","Sharps Containers, Disposable","2019-12-01","2024-11-30","2 Years","Available","80%-100%","Christina Singh","WCAHI"]
[null,"CL","04690","CA","Respiratory - Non-Invasive Mechanical Ventilation Interfaces, Low Pressure - Neonate & Infant","2017-12-01","2023-11-30","2 Years","1 Year Exercised","80%-100%","Luna Attia","ARDI"]
[null,"CL","04880","CA","Fistula Cannula, Non-Metal","2019-06-01","2022-11-30","2 Years","Available","80%-100%","Amarpreet Bambrah","MEDSURG"]
[null,"CL","05252","CA","Sealants, Synthetic, Polyethylene Glycol Based, Vascular","2020-06-01","2026-05-31","2 Years","Available","80%-100%","Adrienne Alexander","OR/MDR"]
[null,"CL","05253","CA","Sealants, Synthetic, Polyethelene Glycol Based, Neurology","2020-01-06","2026-05-31","2 Years","Available","80%-100%","Adrienne Alexander","OR/MDR"]
[null,"CL","05254","CA","Sealants, Synthetic, Advanced Hemostatic/Sealing Pad","2020-06-01","2026-05-31","2 Years","Available","80%-100%","Adrienne Alexander","OR/MDR"]
[null,"CL","05255","CA","Vessel Loops","2020-06-01","2026-05-31","2 Years","Available","80%-100%","Adrienne Alexander","OR/MDR"]
[null,"CL","05256","CA","Tapes, Medical Surgical","2021-12-01","2026-11-30","2 Years","2 Years Available","80%-100%","Amarpreet Bambrah","MEDSURG"]
[null,"CL","05257","CA","Patient Data Chart Paper","2020-12-01","2026-11-30","1 Year + 2 Years","Available","80%","Amarpreet Bambrah","MEDSURG"]
[null,"CL","05258","CA","Pulp Products, Patient Care","2021-12-01","2026-11-30","2 Years","Available","80%-100%","Amarpreet Bambrah","MEDSURG"]
[null,"CL","05259","CA","Dry Wipes, Patient Care","2021-06-01","2026-11-30","2 Years","Available","80%-100%","Amarpreet Bambrah","MEDSURG"]
[null,"CL","05264","CA","Bandages, Tubular Net","2020-12-01","2026-11-30","1 Year + 2 Years","Available","80%","Amarpreet Bambrah","MEDSURG"]
[null,"CL","05331","CA","Misc. Clinical: Patient Assessment & Treatment","2020-12-01","2026-11-30","2 Years","Available","80%","Amarpreet Bambrah","MEDSURG"]
[null,"CL","05332","CA","Misc. Clinical: Patient Personal Care","2020-12-01","2026-11-30","2 Years","Available","80%","Amarpreet Bambrah","MEDSURG"]
[null,"CL","05333","CA","Misc. Clinical: Patient Safety & Comfort","2020-12-01","2026-11-30","2 Years","Available","80%","Amarpreet Bambrah","MEDSURG"]
[null,"CL","05402","CA","Hemostats, Fibrin Sealants, With Anti-Fibrinolytic Molecule","2020-06-01","2026-05-31","2 Years","Available","80%-100%","Adrienne Alexander","OR/MDR"]
[null,"CL","05403","CA","Hernia Fixation Devices, Absorbable","2020-06-01","2026-05-31","2 Years","Available","80%-100%","Adrienne Alexander","OR/MDR"]
[null,"CL","05404","CA","Hernia Fixation Devices, Non-Absorbable","2020-06-01","2026-05-31","2 Years","Available","80%-100%","Adrienne Alexander","OR/MDR"]
[null,"CL","05408","CA","Trays And Kits, Indwelling Pleural And Peritoneal Catheters And Drainage System","2020-12-01","2026-11-30","2 Years","Available","80%","Amarpreet Bambrah","MEDSURG"]
[null,"CL","05697","CA","Shoe Covers, Disposable","2022-06-01","2028-05-31","2 Years","Available","80%-100%","Adrienne Alexander","OR/MDR"]
[null,"CL","05698","CA","Caps & Hoods, Disposable","2022-06-01","2028-05-31","2 Years ","Available","80%-100%","Adrienne Alexander","OR/MDR"]
[null,"CL","05705","CA","Endometrial Ablation","2021-12-01","2027-11-30","2 Years","Available","80%-100%","Luna Attia","ARDI"]
[null,"CL","05707","CA","Peripheral Intervention - Drug Coated Balloons (DCB)","2021-12-01","2027-11-30","2 Years + 2 Years","Available","80%-100%","Luna Attia","ARDI"]
[null,"CL","05742","CA","Temperature Management, Patient Warming System, Reusable","2020-06-01","2026-05-31","2 Years","Available","80%-100%","Adrienne Alexander","OR/MDR"]
[null,"CL","05828","CA","Skin Prep Sponges With Applicator Handle, Chg & Chg/Alcohol","2022-06-01","2028-05-31","2 Years","Available","80%-100%","Adrienne Alexander","OR/MDR"]
[null,"CL","05829","CA","Skin Prep Sponges, Iodine & Iodine/Alcohol","2022-06-01","2028-05-31","2 Years","Available","80%-100%","Adrienne Alexander","OR/MDR"]
[null,"CL","05830","CA","Myringotomy Tubes & Disposable Blades & Knives","2022-06-01","2028-05-31","2 Years","Available","80%-100%","Adrienne Alexander","OR/MDR"]
[null,"CL","06164","CA","Personal Protective Gowns, Non-Rated","2021-12-01","2025-05-31","2 Years + 2 Years","Available","80%-100%","Christina Singh","WCAHI"]
[null,"CL","06175","CA","Preps, Swabs & Solutions - Iodine","2022-06-01","2028-05-31","2 Years","Available","80%-100%","Adrienne Alexander","OR/MDR"]
[null,"CL","06176","CA","Skin Prep Sponges Without Applicator Handle, Chg & Chg/Alcohol","2022-06-01","2028-05-31","2 Years","Available","80%-100%","Adrienne Alexander","OR/MDR"]
[null,"CL","03085_CLPH","CA","ZAWC - Antimicrobial - Chlorhexidine Acetate Dressing","2014-12-01","2023-05-31","2 Years","All Years Exercised","80%-100%","Christina Singh","WCAHI"]
[null,"CL","CC02294","CA","Patient Toiletries","2017-12-01","2022-11-30","2 Years","Available","80%-100%","Amarpreet Bambrah","MEDSURG"]
[null,"CL","CC02296","CA","Patient Slippers & Socks","2017-12-01","2022-11-30","2 Years","Available","80%-100%","Amarpreet Bambrah","MEDSURG"]
[null,"CL","CC03520","CA","I.V. Poles - Standard","2015-12-01","2022-11-30","2 Years","All Years Exercised","80%-100%","Amarpreet Bambrah","MEDSURG"]
[null,"CL","CC03738","CA","Surgical Clippers","2015-12-01","2022-05-31","2 Years","1.5 Years Exercised","80%-100%","Adrienne Alexander","OR/MDR"]
[null,"CL","CC03740","CA","Needle Counters","2015-12-01","2022-05-31","2 Years","1.5 Years Exercised","80%-100%","Adrienne Alexander","OR/MDR"]
[null,"CL","CC03752","CA","I.V. Poles - Ceiling Mounted","2015-12-01","2022-11-30","2 Years","All Years Exercised","80%-100%","Amarpreet Bambrah","MEDSURG"]
[null,"CL","CC04307","CA","Temperature Therapy, Localized: Hot & Cold Packs, Ice Bags","2018-06-01","2023-05-31","2 Years","Available","80%-100%","Christina Singh","WCAHI"]
[null,"CL","CL162CA","CA","Shoe Covers, Disposable","2011-06-01","2022-05-31","1 Year + 1 Year + 1 Year + 1 Year + 1 Year","All Years, plus 1 Year Extension Exercised","100%","Adrienne Alexander","OR/MDR"]
[null,"CL","CL189CA","CA","O.R. Caps & Hoods, Disposable","2011-06-01","2022-05-31","1 Year + 1 Year + 1 Year + 1 Year + 1 Year","All Years, plus 1 Year Extension Exercised","100%","Adrienne Alexander","OR/MDR"]
[null,"SC","02382","CA","Peritoneal Dialysis Supplies, Equipment/Service & Delivery Service","2017-01-01","2023-12-31","2 Years","All Years Exercised","95%-100%","Arlene Thompson"]
[null,"SC","03000","CA","Hemodialysis Dialyzers","2015-06-01","2022-05-31","2 Years","All Years Exercised","80%-100%","Arlene Thompson"]
[null,"SC","03001","CA","Hemodialysis Non-Proprietary Concentrates","2015-06-01","2022-05-31","2 Years","All Years Exercised","80%-100%","Arlene Thompson"]
[null,"SC","03806","CA","Multi-Function Devices & Associated Print Management Services","2016-04-15","2023-03-31","1 Year + 1 Year","All Years Exercised","80%-100%","Arlene Thompson"]
[null,"SC","04021","SC","Hemodialysis Non-Proprietary Concentrates & Additives","2016-11-01","2023-10-31","2 Years","All Years Exercised","80%-100%","Arlene Thompson"]
[null,"SC","04025","SC","Hemodialysis Residual Re-Agent Test Strips","2016-11-01","2023-10-31","2 Years","All Years Exercised","80%-100%","Arlene Thompson"]
[null,"SC","04029","SC","Hemodialysis Home Patient Kitting & Transportation Service","2016-11-01","2023-10-31","2 Years","All Years Exercised","80%-100%","Arlene Thompson"]
[null,"SC","04043","SC","Hemodialysis Non-Proprietary Bicarbonate Cartridges","2016-11-01","2023-10-31","2 Years","All Years Exercised","80%-100%","Arlene Thompson"]
[null,"SC","04045","SC","Hemodialysis Dialyzers Polysulfone","2016-11-01","2023-10-31","2 Years","All Years Exercised","80%-100%","Arlene Thompson"]
[null,"SC","04053","CA","Point Of Care Testing- Diabetes Management","2016-11-01","2024-08-31","2 Years","All Years Exercised","80%-100%","Arlene Thompson"]
[null,"SC","04054","CA","Point Of Care Testing Glucose Meters - Ems Portable Grade","2016-11-01","2024-08-31","2 Years","All Years Exercised","80%-100%","Arlene Thompson"]
[null,"SC","04062","SC","Hemodialysis Descaler Cleaner & Disinfectant","2016-11-01","2023-10-31","2 Years","All Years Exercised","80%-100%","Arlene Thompson"]
[null,"SC","04068","SC","Hemodialysis Chemical Water Testing Service","2016-11-01","2023-10-31","2 Years","All Years Exercised","80%-100%","Arlene Thompson"]
[null,"SC","04088","SC","Hemodialysis Bacteria & Endotoxin Water Testing Service","2016-11-01","2023-10-31","2 Years","All Years Exercised","80%-100%","Arlene Thompson"]
[null,"SC","04090","SC","Hemodialysis Carbon & Deionization Tank Rebedding Service","2016-11-01","2023-10-31","2 Years","All Years Exercised","80%-100%","Arlene Thompson"]
[null,"SC","04130","SC","Hemodialysis Dialyzers Non-Polysulfone","2016-11-01","2023-10-31","2 Years","All Years Exercised","80%-100%","Arlene Thompson"]
[null,"SC","04353","CA","Breast Reconstruction Implants","2017-10-01","2024-09-30","2 Years","All Years Exercised","80%-100%","Arlene Thompson"]
[null,"SC","04503","CA","Intraocular Lenses","2017-10-01","2023-03-31","2 Years","Available","80%-100%","Arlene Thompson"]
[null,"SC","04504","CA","Ophthalmic Viscosurgical Devices","2017-10-01","2023-03-31","2 Years","Available","80%-100%","Arlene Thompson"]
[null,"SC","04505","CA","Balanced Salt Solution","2017-10-01","2023-03-31","2 Years","Available","80%-100%","Arlene Thompson"]
[null,"SC","04506","CA","Cataract Packs And Disposables","2017-10-01","2023-03-31","2 Years","Available","80%-100%","Arlene Thompson"]
[null,"SC","04507","CA","Phacoemulsification Equipment, Supplies And Accessories","2017-10-01","2023-03-31","2 Years","Available","80%-100%","Arlene Thompson"]
[null,"SC","04546","CA","Deep Brain Stimulation Therapy","2019-06-01","2023-03-31","Four (4) One (1) Year Terms","Three (3) one (1) Year Terms Available","80%-100%","Arlene Thompson"]
[null,"SC","04546","SK","Deep Brain Stimulation Therapy","2019-06-01","2023-03-31","Four (4) One (1) Year Terms","Three (3) one (1) Year Terms Available","70%-100%","Arlene Thompson"]
[null,"SC","04547","CA","Spinal Cord Stimulation Therapy","2019-06-01","2023-03-31","Four (4) One (1) Year Terms","Three (3) one (1) Year Terms Available","80%-100%","Arlene Thompson"]
[null,"SC","04547","SK","Spinal Cord Stimulation Therapy","2019-06-01","2023-03-31","Four (4) One (1) Year Terms","Three (3) one (1) Year Terms Available","60%-100%","Arlene Thompson"]
[null,"SC","04548","SK","Intrathecal Drug Delivery Therapy","2019-06-01","2023-03-31","Four (4) One (1) Year Terms","Three (3) one (1) Year Terms Available","80%-100%","Arlene Thompson"]
[null,"SC","04549","SK","Vagal Nerve Stimulation Therapy","2019-06-01","2023-03-31","Four (4) One (1) Year Terms","Three (3) one (1) Year Terms Available","80%-100%","Arlene Thompson"]
[null,"SC","05174","CA","Dorsal Root Ganglion Stimulation Therapy","2019-06-01","2023-03-31","Four (4) One (1) Year Terms","Three (3) one (1) Year Terms Available","80%-100%","Arlene Thompson"]
[null,"SC","05174","SK","Dorsal Root Ganglion Stimulation Therapy","2019-06-01","2023-03-31","Four (4) One (1) Year Terms","Three (3) one (1) Year Terms Available","80%-100%","Arlene Thompson"]
[null,"SC","05215","CA","Home Hemodialysis Supplies And Delivery Service","2019-10-01","2024-11-30","2 Years","Available","80%-100%","Arlene Thompson"]
[null,"SC","05241","CA","Orthopedic Arthroscopy Surgery","2019-11-01","2024-08-31","2 Years","Available","80%-100%","Arlene Thompson"]
[null,"SC","05242","CA","Orthopedic Sports Medicine","2019-11-01","2024-08-31","2 Years","Available","80%-100%","Arlene Thompson"]
[null,"SC","05244","CA","Orthopedic Trauma Surgery","2019-11-01","2024-08-31","2 Years","Available","80%-100%","Arlene Thompson"]
[null,"SC","05354","CA","Primary and Revision Hip","2019-11-01","2024-10-31","2 Years","Available","80%-100%","Arlene Thompson"]
[null,"SC","05356","CA","Primary and Revision Knee","2019-11-01","2024-10-31","2 Years","Available","80%-100%","Arlene Thompson"]
[null,"SC","05357","CA","Uni-Compartmental Knee","2019-11-01","2024-10-31","2 Years","Available","80%-100%","Arlene Thompson"]
[null,"SS","01526","CA","Elevator Maintenance Services","2015-06-01","2022-05-31","2 Years","All Years Exercised","80%-100%","Tanja Sarcevic"]
[null,"SS","01585","CA","Laundry Chemicals & Dispensers","2016-01-01","2023-05-31","2 Years","All Years Exercised","80%-100%","Tanja Sarcevic"]
[null,"SS","01683","CA","Filtration Devices - Pleated & Bag","2016-12-01","2023-11-30","2 Years","All Years Exercised","80%-100%","Tanja Sarcevic"]
[null,"SS","02794","CA","Biomedical Waste Disposal","2020-06-01","2024-11-30","2 Years","Available","80%-100%","Tanja Sarcevic"]
[null,"SS","02797","CA","Hazardous Waste Disposal","2020-06-01","2024-11-30","2 Years","Available","80%-100%","Tanja Sarcevic"]
[null,"SS","02881","CA","Biomedical Waste Disposal","2020-06-01","2024-11-30","2 Years","Available","80%-100%","Tanja Sarcevic"]
[null,"SS","02883","CA","Biomedical Waste Disposal","2020-06-01","2024-11-30","2 Years","Available","80%-100%","Tanja Sarcevic"]
[null,"SS","02926","CA","Maintenance Repair Operation \"MRO\" Supplies","2020-12-01","2025-11-30","2 Years","Available","80%-100%","Tanja Sarcevic"]
[null,"SS","02938","CA","Hospital Electrical Supplies","2020-12-01","2025-11-30","2 Years","Available","80%-100%","Tanja Sarcevic"]
[null,"SS","02939","CA","Batteries – Primary And Secondary Dry-Cell","2020-12-01","2025-11-30","2 Years","Available","80%-100%","Tanja Sarcevic"]
[null,"SS","02940","CA","Lamps & Ballasts","2020-12-01","2025-11-30","2 Years","Available","80%-100%","Tanja Sarcevic"]
[null,"SS","03785","CA","Energy Management Services - Natural Gas","2016-01-01","2025-12-31","3 Years","All Years Exercised","100%","Tanja Sarcevic"]
[null,"SS","04133","PL","Inhaled Nitric Oxide Gas & Accessories","2016-04-01","2023-11-30","2 Years","All Years Exercised","100%","Tanja Sarcevic"]
[null,"SS","04970","CA","Integrated Pest Management Services","2018-12-01","2023-11-30","2 Years","Available","80%-100%","Tanja Sarcevic"]
[null,"SS","05289","CA","Floor Mat Exchange Service","2019-12-01","2024-11-30","2 Years","Available","80%-100%","Tanja Sarcevic"]
[null,"SS","05293","CA","Small Equipment - Floor Care","2019-12-01","2024-11-30","2 Years","Available","80%-100%","Tanja Sarcevic"]
[null,"SS","05297","CA","Paper Bags","2019-12-01","2024-11-30","2 Years","Available","80%-100%","Tanja Sarcevic"]
[null,"SS","05298","CA","Polyethylene Bags","2019-12-01","2024-11-30","2 Years","Available","80%-100%","Tanja Sarcevic"]
[null,"SS","05299","CA","Paper Products","2019-12-01","2024-11-30","2 Years","Available","80%-100%","Tanja Sarcevic"]
[null,"SS","05300","CA","General Housekeeping Supplies","2019-12-01","2024-11-30","2 Years","Available","80%-100%","Tanja Sarcevic"]
[null,"SS","05302","CA","Floor Care Chemicals And Accessories","2019-12-01","2024-11-30","2 Years","Available","80%-100%","Tanja Sarcevic"]
[null,"SS","05692","CA","Office & Administrative Supplies","2020-12-01","2025-11-30","2 Years","Available","80%-100%","Tanja Sarcevic"]
[null,"SS","05693","CA","Fine Papers","2020-12-01","2025-11-30","2 Years","Available","80%-100%","Tanja Sarcevic"]
[null,"SS","05694","CA","Media And Document Destruction Services","2020-12-01","2025-11-30","2 Years","Available","80%-100%","Tanja Sarcevic"]
[null,"SS","05695","CA","Toner Cartridges - OEM, Remanufactured, And Generic","2020-12-01","2025-11-30","2 Years","Available","80%-100%","Tanja Sarcevic"]
[null,"SS","06017","CA","Print Management Services","2021-12-01","2026-11-30","2 Years","Available","80%-100%","Tanja Sarcevic"]
[null,"SS","06135","CA","Elevator Maintenance Services ","2022-06-01","2027-05-31","2 Years","Available","80%-100%","Tanja Sarcevic"]
[null,"SS","06013BC","CA","Laundry And Linen Products","2022-02-01","2026-05-31","2 Years","Available","80%-100%","Tanja Sarcevic"]
[null,"SS","06014NL","NL","Laundry And Linen Products NL","2021-06-01","2026-05-31","2 Years","Available","80%-100%","Tanja Sarcevic"]
[null,"SS","06015NS","NS","Laundry And Linen Products NS","2021-06-01","2026-05-31","2 Years","Available","80%-100%","Tanja Sarcevic"]
[null,"SS","SS00050","CA","Bulk Gases","2017-08-01","2024-11-30","3 Years","Available","100%","Tanja Sarcevic"]
[null,"SS","SS00060","CA","Cylinder Gases","2017-08-01","2024-11-30","3 Years","Available","100%","Tanja Sarcevic"]
[null,"CE","03954","CA","Bed Frames With Surfaces, ICU-CCU (Intensive Or Critical Care), Accessories, Parts & Services","2016-04-15","2024-03-31","Exercised","Exercised","80%-100%","Sam Ho"]
[null,"CE","03959","CA","Bed Frames With Surfaces, Birthing - Maternity, Accessories, Parts & Service","2016-04-15","2024-03-31","Exercised","Exercised","80%-100%","Sam Ho"]
[null,"CE","03960","CA","Bed Frames With Surfaces, Bariatric, Accessories, Parts & Service","2016-04-15","2024-03-31","Exercised","Exercised","80%-100%","Sam Ho"]
[null,"CE","03961","CA","Bed Frames With Or Without Surfaces, Med-Surg & Other Acute Care, Accessories, Parts, & Service","2016-04-15","2024-03-31","Exercised","Exercised","80%-100%","Sam Ho"]
[null,"CE","03962","CA","Bed Frames With Or Without Surfaces, LTC (Long Term Care), Accessories, Parts & Service","2016-04-15","2024-03-31","Exercised","Exercised","80%-100%","Sam Ho"]
[null,"CE","03963","CA","Support Surfaces, Hospital Mattresses, Accessories, Parts & Service","2016-04-15","2024-03-31","Exercised","Exercised","80%-100%","Sam Ho"]
[null,"CE","03964","CA","Stretchers, Accessories, Parts & Service","2016-04-15","2024-03-31","Exercised","Exercised","80%-100%","Sam Ho"]
[null,"CE","03967","CA","Public Access Automated External Defibrillators (AEDS), Accessories & Parts","2016-04-01","2025-03-31","Exercised","Exercised","80%-100%","Sam Ho"]
[null,"CE","04064","CA","Shelving Units & Supply Carts, For Non-Clinical Applications","2016-04-01","2023-03-31","Exercised","Exercised","80%-100%","Sam Ho"]
[null,"CE","04119","CA","Furniture, Offices, Lounges, Receptions & General Areas","2016-09-01","2023-05-31","Exercised","Exercised","80%-100%","Sam Ho"]
[null,"CE","04342","CA","Monitor Defibrillator Devices For Acute Care","2017-06-01","2024-03-31","2 Years","Available","80%-100%","Sam Ho"]
[null,"CE","04356","CA","Warming Cabinets","2017-06-01","2024-03-31","Exercised","Exercised","80%-100%","Sam Ho"]
[null,"CE","04361","CA","Clinical Procedure Carts","2017-06-01","2024-03-31","Exercised","Exercised","80%-100%","Sam Ho"]
[null,"CE","04715","CA","Patient Lifts & Positioning Systems","2018-02-01","2023-03-31","2 Years","Available","80%-100%","Sam Ho"]
[null,"CE","04720","CA","Point Of Care Ultrasound Devices","2018-02-01","2023-03-31","2 Years","Available","80%-100%","Sam Ho"]
[null,"CE","04801","CA","Examination And Procedure Tables, Chairs And Stools","2018-02-01","2024-03-31","3 Years","Available","80%-100%","Sam Ho"]
[null,"CE","04802","CA","Examination And Procedure Lights","2018-02-01","2024-03-31","3 Years","Available","80%-100%","Sam Ho"]
[null,"CE","05018","CA","Commodes And Shower Chairs","2019-02-01","2025-03-31","2 Years","Available","80%-100%","Sam Ho"]
[null,"CE","05027","CA","Surgical Tables","2019-02-01","2025-03-31","2 Years","Available","80%-100%","Sam Ho"]
[null,"CE","05028","CA","Fetal And Maternal Monitoring Systems","2019-02-01","2025-03-31","2 Years","Available","80%-100%","Sam Ho"]
[null,"CE","05029","CA","Infant Warmers And Incubators","2019-02-01","2025-03-31","2 Years","Available","80%-100%","Sam Ho"]
[null,"CE","05085","CA","Biosafety Cabinets And Hoods","2019-02-01","2025-03-31","2 Years","Available","80%-100%","Sam Ho"]
[null,"CE","05369","CA","Endoscope Drying And Storage Cabinets","2020-01-01","2026-03-31","2 Years","Available","80%-100%","Sam Ho"]
[null,"CE","05371","CA","Lab And Pharmacy Refrigerators And Freezers","2020-01-01","2026-03-31","2 Years","Available","80%-100%","Sam Ho"]
[null,"CE","05373","CA","Macerator Disposal Units","2020-01-01","2026-03-31","2 Years","Available","80%-100%","Sam Ho"]
[null,"CE","05375","CA","Vital Signs Monitoring Equipment","2020-01-01","2025-03-31","2 Years","Available","80%-100%","Sam Ho"]
[null,"CE","05377","CA","Patient Monitoring Systems","2020-01-01","2025-03-31","2 Years","Available","80%-100%","Sam Ho"]
[null,"CE","05379","CA","Portable Suction Units","2020-01-01","2026-03-31","2 Years","Available","80%-100%","Sam Ho"]
[null,"CE","05788","CA ","Automated Medication Dispensing Cabinets","2021-01-01","2027-03-31","2 Years","Available","80%-100%","Sam Ho"]
[null,"CE","05790","CA ","Flexible Video GI Endoscopes","2021-01-01","2027-03-31","2 Years","Available","80%-100%","Sam Ho"]
[null,"CE","05792","CA ","Flexible Endobronchial Ultrasound (EBUS) And Endoscopic Ultrasound (EUS) Endoscopes","2021-01-01","2027-03-31","2 Years","Available","80%-100%","Sam Ho"]
[null,"CE","05877","CA ","Flexible Or Endoscopes","2021-01-01","2027-03-31","2 Years","Available","80%-100%","Sam Ho"]
[null,"CE","06155","CA ","Automated Endoscope Reprocessor (AER)","2022-01-01","2028-03-31","2 Years","Available","80%-100%","Sam Ho"]
[null,"CE","06156","CA ","Automated Low Temp. Sterilization Equipment","2022-01-01","2028-03-31","2 Years","Available","80%-100%","Sam Ho"]
[null,"CE","06157","CA ","Automated Autoclave Sterilization Equipment","2022-01-01","2028-03-31","2 Years","Available","80%-100%","Sam Ho"]
[null,"CE","06158","CA ","Cart Washer","2022-01-01","2028-03-31","2 Years","Available","80%-100%","Sam Ho"]
[null,"CE","06159","CA ","Medical Washer Disinfector","2022-01-01","2028-03-31","2 Years","Available","80%-100%","Sam Ho"]
[null,"CE","06160","CA ","Medication Packaging Equipment","2022-01-01","2028-03-31","2 Years","Available","80%-100%","Sam Ho"]
[null,"CE","06161","CA ","OR Boom Equipment","2022-01-01","2028-03-31","2 Years","Available","80%-100%","Sam Ho"]
[null,"CE","06162","CA ","Surgical Lights","2022-01-01","2028-03-31","2 Years","Available","80%-100%","Sam Ho"]
[]
[]
[null," "]